{"text_format":"1","workbook":"xlsx","n_sheets":2,"sheets":["Bygningsdele","LookUpData"],"not_rendered":{"charts":0,"images":1,"macros":1,"external_links":0,"defined_names":18,"comments":0,"pivot_tables":0},"unopened":[],"bounds":{"document_bytes":16777216,"sheet_cells":100000,"rows_first":2000,"rows_last":500,"rows_between":2000,"halvings":0,"cell_chars":16384,"cell_head_chars":4096},"cells_cut":0,"cells_raw":0,"read":"whole","date_system":"1900"}

{"sheet":"Bygningsdele","index":0,"n_rows":282,"n_cols":52,"rows_kept":282,"cut":false,"hidden":false,"merged":[[133,1,133,2],[185,1,185,2],[279,1,279,2],[121,1,121,2],[218,1,218,2],[220,1,220,2],[264,1,264,2],[265,1,265,2],[266,1,266,2],[267,1,267,2],[268,1,268,2],[259,1,259,2],[260,1,260,2],[261,1,261,2],[262,1,262,2],[263,1,263,2],[254,1,254,2],[255,1,255,2],[256,1,256,2],[257,1,257,2],[258,1,258,2],[249,1,249,2],[250,1,250,2],[251,1,251,2],[280,1,280,2],[281,1,281,2],[274,1,274,2],[275,1,275,2],[276,1,276,2],[277,1,277,2],[278,1,278,2],[269,1,269,2],[270,1,270,2],[271,1,271,2],[272,1,272,2],[273,1,273,2],[252,1,252,2],[253,1,253,2],[244,1,244,2],[245,1,245,2],[246,1,246,2],[247,1,247,2],[248,1,248,2],[239,1,239,2],[240,1,240,2],[241,1,241,2],[242,1,242,2],[243,1,243,2],[235,1,235,2],[236,1,236,2],[237,1,237,2],[238,1,238,2],[229,1,229,2],[230,1,230,2],[231,1,231,2],[232,1,232,2],[233,1,233,2],[225,1,225,2],[226,1,226,2],[227,1,227,2],[228,1,228,2],[222,1,222,2],[223,1,223,2],[224,1,224,2],[234,1,234,2],[210,1,210,2],[211,1,211,2],[212,1,212,2],[213,1,213,2],[214,1,214,2],[216,1,216,2],[217,1,217,2],[219,1,219,2],[221,1,221,2],[215,1,215,2],[206,1,206,2],[207,1,207,2],[208,1,208,2],[209,1,209,2],[200,1,200,2],[201,1,201,2],[202,1,202,2],[203,1,203,2],[204,1,204,2],[195,1,195,2],[196,1,196,2],[197,1,197,2],[198,1,198,2],[191,1,191,2],[192,1,192,2],[193,1,193,2],[199,1,199,2],[205,1,205,2],[183,1,183,2],[178,1,178,2],[179,1,179,2],[180,1,180,2],[181,1,181,2],[182,1,182,2],[189,1,189,2],[190,1,190,2],[194,1,194,2],[188,1,188,2],[187,1,187,2],[184,1,184,2],[186,1,186,2],[174,1,174,2],[175,1,175,2],[176,1,176,2],[177,1,177,2],[168,1,168,2],[169,1,169,2],[170,1,170,2],[171,1,171,2],[172,1,172,2],[136,1,136,2],[137,1,137,2],[165,1,165,2],[166,1,166,2],[167,1,167,2],[129,1,129,2],[130,1,130,2],[131,1,131,2],[132,1,132,2],[161,1,161,2],[162,1,162,2],[163,1,163,2],[164,1,164,2],[134,1,134,2],[135,1,135,2],[138,1,138,2],[139,1,139,2],[140,1,140,2],[142,1,142,2],[143,1,143,2],[144,1,144,2],[145,1,145,2],[146,1,146,2],[141,1,141,2],[124,1,124,2],[125,1,125,2],[126,1,126,2],[127,1,127,2],[128,1,128,2],[119,1,119,2],[120,1,120,2],[122,1,122,2],[123,1,123,2],[114,1,114,2],[115,1,115,2],[116,1,116,2],[117,1,117,2],[118,1,118,2],[110,1,110,2],[111,1,111,2],[112,1,112,2],[113,1,113,2],[95,1,95,2],[96,1,96,2],[88,1,88,2],[89,1,89,2],[90,1,90,2],[91,1,91,2],[107,1,107,2],[108,1,108,2],[109,1,109,2],[102,1,102,2],[103,1,103,2],[104,1,104,2],[105,1,105,2],[106,1,106,2],[97,1,97,2],[98,1,98,2],[99,1,99,2],[100,1,100,2],[101,1,101,2],[80,1,80,2],[71,1,71,2],[72,1,72,2],[73,1,73,2],[74,1,74,2],[75,1,75,2],[92,1,92,2],[93,1,93,2],[94,1,94,2],[81,1,81,2],[66,1,66,2],[67,1,67,2],[68,1,68,2],[56,1,56,2],[57,1,57,2],[58,1,58,2],[59,1,59,2],[87,1,87,2],[69,1,69,2],[70,1,70,2],[61,1,61,2],[62,1,62,2],[63,1,63,2],[64,1,64,2],[65,1,65,2],[76,1,76,2],[77,1,77,2],[82,1,82,2],[83,1,83,2],[84,1,84,2],[85,1,85,2],[86,1,86,2],[78,1,78,2],[79,1,79,2],[12,1,12,2],[33,1,33,2],[60,1,60,2],[51,1,51,2],[52,1,52,2],[53,1,53,2],[54,1,54,2],[55,1,55,2],[42,1,42,2],[43,1,43,2],[44,1,44,2],[45,1,45,2],[50,1,50,2],[41,1,41,2],[0,1,0,2],[8,1,8,2],[9,1,9,2],[0,8,0,9],[1,23,9,23],[0,14,0,16],[1,16,9,16],[1,8,9,8],[1,10,9,10],[0,11,0,13],[0,17,0,19],[0,20,0,21],[0,22,0,41],[1,33,9,33],[1,34,9,34],[1,32,9,32],[1,31,9,31],[1,29,9,29],[1,1,6,1],[1,2,6,2],[10,1,10,2],[11,1,11,2],[157,1,157,2],[158,1,158,2],[159,1,159,2],[160,1,160,2],[173,1,173,2],[147,1,147,2],[156,1,156,2],[148,1,148,2],[149,1,149,2],[150,1,150,2],[151,1,151,2],[152,1,152,2],[153,1,153,2],[154,1,154,2],[155,1,155,2],[40,1,40,2],[46,1,46,2],[47,1,47,2],[48,1,48,2],[49,1,49,2],[38,1,38,2],[39,1,39,2],[0,42,0,49],[0,50,0,51],[1,6,9,6],[1,7,9,7],[1,9,9,9],[1,11,9,11],[1,12,9,12],[1,13,9,13],[1,14,9,14],[1,15,9,15],[1,17,9,17],[1,18,9,18],[1,19,9,19],[1,20,9,20],[1,21,9,21],[1,22,9,22],[1,45,9,45],[1,46,9,46],[1,24,9,24],[1,25,9,25],[1,26,9,26],[1,27,9,27],[1,28,9,28],[1,30,9,30],[1,47,9,47],[1,48,9,48],[1,49,9,49],[1,50,9,50],[1,51,9,51],[1,35,9,35],[1,36,9,36],[1,37,9,37],[1,38,9,38],[1,39,9,39],[1,40,9,40],[1,41,9,41],[1,42,9,42],[1,43,9,43],[1,44,9,44]]}
[null,"Leverancespecifikation \nfor bygningsdele",null,null,null,"9.7 Digital aflevering","BD-kort","Navn","Hoved-info",null,"Beskriv.","Lokation",null,null,"Produkt",null,null,"Garanti",null,null,"Vedligehold",null,"Egenskaber",null,null,null,null,null,null,null,null,null,null,null,null,null,null,null,null,null,null,null,"Dokumenter",null,null,null,null,null,null,null,"Tegninger"]
[null,"Projektnavn:\nAU sagsnr.:\nEntreprisenr.:\nEntrepriseområde:\nEntreprenør:\nRevision:\nVersionsdato:","\n\n",null,null,"F = BD-kort pr. Forekomst/stk.","Aflevering pr. Type, Forekomst eller kun Dokumenter","Navn (CCS-funktionsID)","Arbejdspakke (Fagdiscilplin)","Skabelon (CCS-klassifikation)","Beskrivelse","Bygning","Etage","Rum","Produktnavn","Producent","Typenavn (Typenr./Modelnr.)","Installationsdato","Garantistartdato","Garanti (antal år)","Vedligeholdelsesopgave","Vedligeholdelsesinterval","Garantistiller på arbejde (Entreprenør)","Serienummer","Brandklasse","Farvekode","Flow (cm3/h, m3/h væske, luft)","Effekt (kW/kWh)","Volumenkapacitet (cm3, m3, liter)","Personkapacitet","Varmegenvindingstype","Virkningsgrad (i %)","Motortype","Filtertype","Kølemiddel","Kølemiddel i kg","Tavlenummer","Termograferet (dato)","CTS styresystem","CTS kode","Forsynet fra el-tavle","Forsynings-/betjeningsområde","Datablad","D&V-vejledninger","Komponent- og reservedelslister","Garantibeviser","Certifikater (lovpligtig)","CE-mærkninger (lovpligtig)","Foto som monteret","Anlægs- og funktionsbeskrivelser","Som udført tegninger","Princip/ funktionsdiagrammer"]
[null,null,null,null,null,"T = BD-kort pr. type"]
[null,null,null,null,null,"D = Kun dokumenter"]
[null,null,null,null,null,"Ingen aflevering "]
[]
[]
[]
[]
["CCS","Begreb",null,"Synonymer","Bygningsdelens definition","Bemærkning"]
["1/25","Rum",null,null,null,null,{"$f":"COUNTA(G12)","v":0}]
[null,"Rum",null,null,"En afgrænset tredimensionel udstrækning defineret fysisk eller fiktivt"," ",null,{"$f":"IF(OR($G12=\"F\",$G12=\"T\"),$G12,0)","v":0},0,0,0,0,{"$f":"IF($G12=\"F\",$G12,0)","v":0},0,0,0,0,0,0,0,0,0,0,{"$f":"IF($G12=\"F\",$G12,0)","v":0},null,null,null,null,null,null,null,null,null,null,null,null,null,null,{"$f":"IF(OR($G12=\"F\",$G12=\"T\"),$G12,0)","v":0},{"$f":"IF($G12=\"F\",$G12,0)","v":0},0,0,{"$f":"$G12","v":0},{"$f":"IF(OR($G12=\"F\",$G12=\"T\"),$G12,0)","v":0},0,0,0,0,0,{"$f":"IF(AND(LEN($A12)=2,OR($G12=\"F\",$G12=\"T\")),$G12,0)","v":0},{"$f":"IF(AND(LEN($A12)=2,OR($G12=\"F\",$G12=\"T\")),$G12,0)","v":0},{"$f":"IF(AND(LEN($A12)=2,OR($G12=\"F\",$G12=\"T\")),$G12,0)","v":0}]
["2/25","Inventar og udstyr",null,null,null,null,{"$f":"COUNTA(G14:G33)","v":9}]
["[Z]AAA","Tandlægestol",null,"Behandlingsstol","Inventar til anbringelse af personer for dental behandling"," ",null,{"$f":"IF(OR($G14=\"F\",$G14=\"T\"),$G14,0)","v":0},0,0,0,0,{"$f":"IF($G14=\"F\",$G14,0)","v":0},0,0,0,0,0,0,0,0,0,0,{"$f":"IF($G14=\"F\",$G14,0)","v":0},null,null,null,null,null,null,null,null,null,null,null,null,null,null,{"$f":"IF(OR($G14=\"F\",$G14=\"T\"),$G14,0)","v":0},{"$f":"IF($G14=\"F\",$G14,0)","v":0},0,0,{"$f":"$G14","v":0},{"$f":"IF(OR($G14=\"F\",$G14=\"T\"),$G14,0)","v":0},0,0,0,0,0,{"$f":"IF(AND(LEN($A14)=2,OR($G14=\"F\",$G14=\"T\")),$G14,0)","v":0},{"$f":"IF(AND(LEN($A14)=2,OR($G14=\"F\",$G14=\"T\")),$G14,0)","v":0},{"$f":"IF(AND(LEN($A14)=2,OR($G14=\"F\",$G14=\"T\")),$G14,0)","v":0}]
["[Z]AAB","Operationsbord",null,"Operationsleje","Inventar til anbringelse af personer for anatomisk behandling"," ",null,0,0,0,0,0,0,0,0,0,0,0,0,0,0,0,0,0,null,null,null,null,null,null,null,null,null,null,null,null,null,null,null,null,null,null,0,0,0,0,0,0,0,{"$f":"IF(AND(LEN($A15)=2,OR($G15=\"F\",$G15=\"T\")),$G15,0)","v":0},0,0]
["[Z]AAC","Briks ",null,null,"Inventar til anbringelse af personer for behandling"," ",null,0,0,0,0,0,0,0,0,0,0,0,0,0,0,0,0,0,null,null,null,null,null,null,null,null,null,null,null,null,null,null,0,0,0,0,0,0,0,0,0,0,0,0,0,0]
["[Z]ABA","Autoklave",null,null,"Beholder, der kan lukkes tæt og som ved forhøjet tryk og temperatur benyttes til at sterilisere mikrobiologiske substrater, inficeret materiale og udstyr, fx kirurgiske instrumenter, samt lægemidler til injektion."," ",null,0,0,0,0,0,0,0,0,0,0,0,0,0,0,0,0,0,null,null,null,null,null,null,null,null,null,null,null,null,null,null,0,0,0,0,0,0,0,0,0,0,0,0,0,0]
["[Z]ABB","Vaskemaskine",null,null,"Rengørende inventar der opvarmer vand til rengøring af tekstiler.","Oprettes som Type med flere lokationer","T","T","T","T","T","T","T","T","T","T","T","T","T","T","T","T","T",0,null,null,null,null,null,null,null,null,null,null,null,null,null,null,null,0,0,0,"T","T",null,null,null,null,null,0,0,0]
["[Z]ABC","Opvaskemaskine",null,null,"Rengørende inventar der opvarmer vand til rengøring af service.","Oprettes som Type med flere lokationer","T","T","T","T","T","T","T","T","T","T","T","T","T","T","T","T","T",0,null,null,null,null,null,null,null,null,null,null,null,null,null,null,null,0,0,0,"T","T",null,null,null,null,null,0,0,0]
["[Z]ACA","Tørretumbler",null,null,"Tørrende inventar der tilfører varm luft til våde eller fugtige tekstiler. ","Oprettes som Type med flere lokationer","T","T","T","T","T","T","T","T","T","T","T","T","T","T","T","T","T",0,null,null,null,null,null,null,null,null,null,null,null,null,null,null,null,0,0,0,"T","T",null,null,null,null,null,0,0,0]
["[Z]ADA","Stinkskab",null,"Sikkerhedskabinet, Aftræksskab","Sundhedsbeskyttende inventar i form af et delvist lukket kabinet der beskytter brugerne mod påvirkning fra sundhedsskadelige stoffer, stænk og mindre utilsigtede eksplosioner"," ",null,0,0,0,0,0,0,0,0,0,0,0,0,0,0,0,0,0,null,null,null,null,null,null,null,null,null,null,null,null,null,null,null,null,null,null,0,0,0,0,0,0,0,0,0,0]
["[Z]ADB","LAF bænk",null,"Sikkerhedskabinet","Sundhedsbeskyttende inventar i form af et delvist lukket kabinet der beskytter brugerne og analyseprøven mod påvirkning fra sundhedsskadelige stoffer, stænk og mindre utilsigtede eksplosioner"," ",null,0,0,0,0,0,0,0,0,0,0,0,0,0,0,0,0,0,null,null,null,null,null,null,null,null,null,null,null,null,null,null,null,null,null,null,0,0,0,0,0,0,0,0,0,0]
["[Z]AEA","Køle-/fryseskab",null,"Køleskab, Køledisk, Fryseskab, Kummefryser, Køleboks","Lukket stationær komponent til køling af faste genstande, væsker og masser","Oprettes som Type med flere lokationer","T","T","T","T","T","T","T","T","T","T","T","T","T","T","T","T","T",0,null,null,null,null,null,null,null,null,null,null,null,null,null,null,null,null,null,null,"T","T",null,null,null,null,null,0,0,0]
["[Z]AEB","Inkubator",null,"Varmeskab","Lukket inventar til mikrobiologi og celledykning der kræver præcis temperaturstyring ved opbevaring af prøver.","Oprettes som Type med flere lokationer","T","T","T","T","T","T","T","T","T","T","T","T","T","T","T","T","T",0,null,null,null,null,null,null,null,null,null,null,null,null,null,null,null,null,null,null,"T","T",null,null,null,null,null,0,0,0]
["[Z]AFA","Ovn",null,"Gasovn","Lukket inventar der opvarmes kraftigt til behandling af fødevare, f.eks. ved bagning eller stegning. Kan være indbygget i et komfur.","Oprettes som Type med flere lokationer","T","T","T","T","T","T","T","T","T","T","T","T","T","T","T","T","T",0,null,null,null,null,null,null,null,null,null,null,null,null,null,null,null,0,0,0,"T","T",null,null,null,null,null,0,0,0]
["[Z]AFB","Kogeplade",null,"Keramisk kogeplade, Induktionskogeplade, Varmeplade, gasblus","Inventar der kraftigt opvarmer et afgrænset område på en plade til behandling af fødevare. Kan være indbygget i et komfur.","Oprettes som Type med flere lokationer","T","T","T","T","T","T","T","T","T","T","T","T","T","T","T","T","T",0,null,null,null,null,null,null,null,null,null,null,null,null,null,null,null,0,0,0,"T","T",null,null,null,null,null,0,0,0]
["[Z]AFC","Komfur",null,"Gaskomfur","Inventar til opvarmning og tilberedning af fødevare, forsynet med tre eller fire elektriske kogeplader eller gasblus og ofte med indbygget ovn.","Oprettes som Type med flere lokationer","T","T","T","T","T","T","T","T","T","T","T","T","T","T","T","T","T",0,null,null,null,null,null,null,null,null,null,null,null,null,null,null,null,0,0,0,"T","T",null,null,null,null,null,0,0,0]
["[Z]AFD","Drikkevareautomat",null,"Kaffeautomat, Vandautomat","Drikkevareproducerende inventar som, ved  tryk på en knap, producerer kolde eller varme drikke.","Oprettes som Type med flere lokationer","T","T","T","T","T","T","T","T","T","T","T","T","T","T","T","T","T",0,null,null,null,null,null,null,null,null,null,null,null,null,null,null,null,0,0,0,"T","T",null,null,null,null,null,0,0,0]
["[Z]AGA","Laboratoriefag",null,"Laboratoriesektion, Laboratoriebord, Arbejdsbord","Inventar hvor personer kan udføre laboratoriearbejde"," ",null,0,0,0,0,0,0,0,null,0,null,0,0,0,0,0,0,null,null,null,null,null,null,null,null,null,null,null,null,null,null,null,null,null,null,null,0,0,null,null,null,null,0,0,0,0]
["[Z]BAA","Gulvvasker",null,"Gulvvaskemaskine","Rengørende udstyr der ved elektromotorisk drivkraft kan køre og rengøre gulve."," ",null,{"$f":"IF(OR($G30=\"F\",$G30=\"T\"),$G30,0)","v":0},0,0,0,0,{"$f":"IF($G30=\"F\",$G30,0)","v":0},0,0,0,0,0,0,0,0,0,0,0,null,null,null,null,null,null,null,null,null,null,null,null,null,null,0,{"$f":"IF($G30=\"F\",$G30,0)","v":0},0,0,0,{"$f":"IF(OR($G30=\"F\",$G30=\"T\"),$G30,0)","v":0},0,0,0,0,0,0,0,0]
["[Z]BBA","Brandslukker",null,"CO2-slukker, Kulsyreslukker, Pulverslukker, Skumslukker, Vandslukker","Udstyr der bekæmper en brand ved tilførsel af CO2, pulver, skum eller vand."," ",null,0,0,0,0,0,0,0,0,0,0,0,0,0,0,0,0,0,null,null,null,null,null,null,null,null,null,null,null,null,null,null,null,null,null,null,0,null,null,null,null,null,0,0,0,0]
["[Z]BBB","Brandtæppe",null,null,"Brandbekæmpende udstyr i form af et tæppe der forhindre tilførsel af ilt til en brand."," ",null,0,0,0,0,0,0,0,0,0,0,0,0,0,0,0,0,0,null,null,null,null,null,null,null,null,null,null,null,null,null,null,null,null,null,null,0,null,null,null,null,null,0,0,0,0]
["[Z]BCA","Defibrillator",null,"Hjertestarter","Udstyr der udsender elektrisk stød for at modvirke hjertestop. "," ",null,0,0,0,0,0,0,0,0,0,0,0,0,0,0,0,0,0,null,null,null,null,null,null,null,null,null,null,null,null,null,null,null,null,null,null,0,null,null,null,null,null,0,0,0,0]
["3/25","Tærren og udendørs",null,null,null,null,{"$f":"COUNTA(G35:G38)","v":2}]
["AA","Belægningsopbygning",null,"Vejopbygning, Vejkasse, Stiopbygning, Befæstelse","opbyggende teknisk system af lag der danner arealer til færdsel"," ",null,{"$f":"IF(OR($G35=\"F\",$G35=\"T\"),$G35,0)","v":0},0,0,0,0,{"$f":"IF($G35=\"F\",$G35,0)","v":0},0,0,0,0,0,0,0,0,0,0,{"$f":"IF($G35=\"F\",$G35,0)","v":0},null,null,null,null,null,null,null,null,null,null,null,null,null,null,{"$f":"IF(OR($G35=\"F\",$G35=\"T\"),$G35,0)","v":0},{"$f":"IF($G35=\"F\",$G35,0)","v":0},0,0,{"$f":"$G35","v":0},{"$f":"IF(OR($G35=\"F\",$G35=\"T\"),$G35,0)","v":0},0,0,0,0,0,{"$f":"IF(AND(LEN($A35)=2,OR($G35=\"F\",$G35=\"T\")),$G35,0)","v":0},0,0]
["BA","Terrænkonstruktion",null,"Terrænbasis, Planum","konstruktivt teknisk system der danner et reguleret volumen af undergrund"," ",null,0,0,0,0,0,0,0,0,0,0,0,0,0,0,0,0,0,null,null,null,null,null,null,null,null,null,null,null,null,null,null,0,0,0,0,0,0,0,0,0,0,0,0,0,0]
["RA","Beplantning",null,"Træ, Plante, Plantning, Busk","indrettende teknisk system i form af vegetation"," ","D",0,0,0,0,0,0,0,0,0,0,0,0,0,0,0,0,0,null,null,null,null,null,null,null,null,null,null,null,null,null,null,0,0,0,0,"D",0,0,0,0,0,0,0,0,0]
["NCA","Belægning",null,"Naturstensbelægning, Kunstgræs, Kunststofbelægning, Teglbelægning, Træbelægning, Terrænbelægning, Grusbelægning, Gummibelægning, Ubunden belægning, Asfaltbelægning, Slidlag, Stålbelægning, Flisebelægning, Elementbelægning, Betonbelægning, Bunden belægning","afdækkende komponent der afslutter en befæstelse opadtil"," ","D",0,0,0,0,0,0,0,0,0,0,0,0,0,0,0,0,0,null,null,null,null,null,null,null,null,null,null,null,null,null,null,0,0,0,0,"D",0,0,0,0,0,0,0,0,0]
["4/25","Konstruktioner",null,null,null,null,{"$f":"COUNTA($G$40:$G$50)","v":1}]
["AC","Etageadskillelsesopbygning",null,"Terrænadskillelsesopbygning, Gangbro, Dækopbygning, Balkon","opbyggende teknisk system af lag der danner horisontal adskillelse"," ",null,{"$f":"IF(OR($G40=\"F\",$G40=\"T\"),$G40,0)","v":0},0,0,0,0,{"$f":"IF($G40=\"F\",$G40,0)","v":0},0,0,0,0,0,0,0,0,0,0,{"$f":"IF($G40=\"F\",$G40,0)","v":0},null,null,null,null,null,null,null,null,null,null,null,null,null,null,{"$f":"IF(OR($G40=\"F\",$G40=\"T\"),$G40,0)","v":0},{"$f":"IF($G40=\"F\",$G40,0)","v":0},0,0,{"$f":"$G40","v":0},{"$f":"IF(OR($G40=\"F\",$G40=\"T\"),$G40,0)","v":0},0,0,0,0,0,{"$f":"IF(AND(LEN($A40)=2,OR($G40=\"F\",$G40=\"T\")),$G40,0)","v":0},0,0]
["AD","Vægopbygning",null,"Havemur, Kampestensmur, Teglmur, Vægelement, Væg, Gabion, Gitterkonstruktion, Rammekonstruktion, Rumgitter, Portparti, Skalmur, Skeletkonstruktion, Støttemur, Stengabion, Søjler, Søjlerække, Foldevæg, Formur, Lukningsparti, Bindingsværk, Bolværk, Bagmur","opbyggende teknisk system af lag der danner vertikal adskillelse"," ",null,0,0,0,0,0,0,0,0,0,0,0,0,0,0,0,0,0,null,null,null,null,null,null,null,null,null,null,null,null,null,null,0,0,0,0,0,0,0,0,0,0,0,0,0,0]
["AF","Trappeopbygning",null,"Halvsvingstrappe, Naturstenstrappe, Kvartsvingstrappe, Trappe, Trappekonstruktion, Teglstenstrappe, Trætrappe, Terræntrappe, Trampe, Spindeltrappe, Ståltrappe, Ligeløbstrappe, Betontrappe","opbyggende teknisk system af lag der skaber trinmæssig forbindelse mellem to eller flere niveauer"," ",null,0,0,0,0,0,0,0,0,0,0,0,0,0,0,0,0,0,null,null,null,null,null,null,null,null,null,null,null,null,null,null,0,0,0,0,0,0,0,0,0,0,0,0,0,0]
["AG","Rampeopbygning",null,"Kørerampe, Kørestolsrampe, Terrænrampe, Rampe, Rampekonstruktion, Motorvejsrampe, Læsserampe","opbyggende teknisk system af lag der skaber trinfri forbindelse mellem to eller flere niveauer"," ",null,0,0,0,0,0,0,0,0,0,0,0,0,0,0,0,0,0,null,null,null,null,null,null,null,null,null,null,null,null,null,null,0,0,0,0,0,0,0,0,0,0,0,0,0,0]
["BB","Fundamentskonstruktion",null,"Understøbning, Piloteringspæl, Punktfundament, Fundament, Linjefundament","konstruktivt teknisk system der forbinder overliggende bygningsdele med undergrunden"," ",null,0,0,0,0,0,0,0,0,0,0,0,0,0,0,0,0,0,null,null,null,null,null,null,null,null,null,null,null,null,null,null,0,0,0,0,0,0,0,0,0,0,0,0,0,0]
["BC","Dækkonstruktion",null,"Huldækskonstruktion, Terrændæk, Gitterkonstruktion, Rammekonstruktion, Rumgitter, Skeletkonstruktion, Etagedæk, Bjælkelagskonstruktion, Brodæk","konstruktivt teknisk system i en horisontal adskillelse"," ",null,0,0,0,0,0,0,0,0,0,0,0,0,0,0,0,0,0,null,null,null,null,null,null,null,null,null,null,null,null,null,null,0,0,0,0,0,0,0,0,0,0,0,0,0,0]
["BD","Vægkonstruktion",null,"Vægelement, Gabion, Gitterkonstruktion, Rammekonstruktion, Rumgitter, Skalmur, Skeletkonstruktion, Støttemur, Stengabion, Søjler, Søjlerække, Formur, Bindingsværk, Bolværk, Bagmur","konstruktivt teknisk system i en vertikal adskillelse"," ",null,0,0,0,0,0,0,0,0,0,0,0,0,0,0,0,0,0,null,null,null,null,null,null,null,null,null,null,null,null,null,null,0,0,0,0,0,0,0,0,0,0,0,0,0,0]
["BE","Tagkonstruktion",null,"Hanebåndsspær, Kassespærfag, Trempelspærfag, Valmspærfag, Gitterkonstruktion, Gitterspærfag, Gavlspærfag, Rammekonstruktion, Rumgitter, Skeletkonstruktion, Saksespær","konstruktivt teknisk system der afslutter bygværket opadtil"," ",null,0,0,0,0,0,0,0,0,0,0,0,0,0,0,0,0,0,null,null,null,null,null,null,null,null,null,null,null,null,null,null,0,0,0,0,0,0,0,0,0,0,0,0,0,0]
["BF","Gulvkonstruktion",null,"Klinkrgulv, Trægulv, Gulv, Gulvkonstruktion, Undergulv, Parketgulv, Strøgulv, Svømmende gulv, Flisegulv, Fugefrit gulv, Bjælkelagsgulv","konstruktivt teknisk system der afslutter et rum nedadtil"," ",null,0,0,0,0,0,0,0,0,0,0,0,0,0,0,0,0,0,null,null,null,null,null,null,null,null,null,null,null,null,null,null,0,0,0,0,0,0,0,0,0,0,0,0,0,0]
["BG","Loftkonstruktion",null,"Nedhængt loft, Nedstroppet loft, Kassetteloft, Kludeloft, Metalloft, Akustikloft, Pudsloft, Påbygget loft, systemloft, Loft, Loftkonstruktion","konstruktivt teknisk system der afslutter et rum opadtil"," ",null,0,0,0,0,0,0,0,0,0,0,0,0,0,0,0,0,0,null,null,null,null,null,null,null,null,null,null,null,null,null,null,0,0,0,0,0,0,0,0,0,0,0,0,0,0]
["XSB","Trappeløb",null,"1 1/2 skridtstrappe, 1-skridts-trappe, Flerskridtstrappe","niveauforbindende komponent der trinvis forbinder reposer eller etager med hinanden  "," ","D",0,0,0,0,0,0,0,0,0,0,0,0,0,0,0,0,0,null,null,null,null,null,null,null,null,null,null,null,null,null,null,0,0,0,0,"D",0,0,0,0,0,0,0,0,0]
["5/25","Kompletterende bygningsdele",null,null,null,null,{"$f":"COUNTA(G52:G59)","v":4}]
["NCG","Vinduesplade",null,"Vindueskarm","afdækkende komponent der beklæder overside af vinduesbrystning indvendigt"," ",null,{"$f":"IF(OR($G52=\"F\",$G52=\"T\"),$G52,0)","v":0},0,0,0,0,{"$f":"IF($G52=\"F\",$G52,0)","v":0},0,0,0,0,0,0,0,0,0,0,{"$f":"IF($G52=\"F\",$G52,0)","v":0},null,null,null,null,null,null,null,null,null,null,null,null,null,null,{"$f":"IF(OR($G52=\"F\",$G52=\"T\"),$G52,0)","v":0},{"$f":"IF($G52=\"F\",$G52,0)","v":0},0,0,{"$f":"$G52","v":0},{"$f":"IF(OR($G52=\"F\",$G52=\"T\"),$G52,0)","v":0},0,0,0,0,0,{"$f":"IF(AND(LEN($A52)=2,OR($G52=\"F\",$G52=\"T\")),$G52,0)","v":0},0,0]
["NCH","Lysning",null,"Karmlysning, Tilsætning, Vindueslysning, Dørlysning, Lysningspanel","afdækkende komponent der beklæder fals i åbning"," ",null,0,0,0,0,0,0,0,0,0,0,0,0,0,0,0,0,0,null,null,null,null,null,null,null,null,null,null,null,null,null,null,0,0,0,0,0,0,0,0,0,0,0,0,0,0]
["NCJ","Indfatning",null,"Gericht, Gerigt","afdækkende komponent der beklæder overgang mellem væg og karm eller lysning  "," ",null,0,0,0,0,0,0,0,0,0,0,0,0,0,0,0,0,0,null,null,null,null,null,null,null,null,null,null,null,null,null,null,0,0,0,0,0,0,0,0,0,0,0,0,0,0]
["NCK","Fodpanel",null,"Fodbræt, Fodliste","afdækkende komponent  ved overgang mellem gulv og væg"," ",null,0,0,0,0,0,0,0,0,0,0,0,0,0,0,0,0,0,null,null,null,null,null,null,null,null,null,null,null,null,null,null,0,0,0,0,0,0,0,0,0,0,0,0,0,0]
["NCM","Rygning",null,"Kip, Tagryg, Mønning","afdækkende komponent der beklæder den øverst vandret liggende sammenskæring af tagflader"," ","D",0,0,0,0,0,0,0,0,0,0,0,0,0,0,0,0,0,null,null,null,null,null,null,null,null,null,null,null,null,null,null,0,0,0,0,"D",0,0,0,0,0,0,0,0,0]
["WMC","Inddækning",null,null,"åben væsketransporterende komponent der afleder væske ved overgang mellem to bygningsdele"," ","D",0,0,0,0,0,0,0,0,0,0,0,0,0,0,0,0,0,null,null,null,null,null,null,null,null,null,null,null,null,null,null,0,0,0,0,"D",0,0,0,0,0,0,0,0,0]
["NAD","Fuge",null,"Isoleringsfuge, Totrinsfuge, Dilatationsfuge, Stopning, Fugelukning, Fugemasse, Fugebånd, Lydtætning, Bagstop, Brandfuge","udfyldende komponent der tætner mindre åbninger i eller mellem bygningsdele  "," ","D",0,0,0,0,0,0,0,0,0,0,0,0,0,0,0,0,0,null,null,null,null,null,null,null,null,null,null,null,null,null,null,0,0,0,0,"D",0,0,0,0,0,0,0,0,0]
["NCR","Dørskilt",null,"Nøgleskilt, Langskilt","afdækkende komponent i form af plade der omgiver nøglehul "," ","D",0,0,0,0,0,0,0,0,0,0,0,0,0,0,0,0,0,null,null,null,null,null,null,null,null,null,null,null,null,null,null,0,0,0,0,"D",0,0,0,0,0,0,0,0,0]
["6/25","Overflader og belægninger",null,null,null,null,{"$f":"COUNTA(G61:G66)","v":6}]
["FRA","Puds",null,"Vandskuring, Grovpuds, Pudset overflade, Sækkeskuring, Sokkelpuds, Filts, Finpuds, Berapning","klimabeskyttende komponent i form af tynd størknet materialelag påført anden bygningsdel"," ","D",{"$f":"IF(OR($G61=\"F\",$G61=\"T\"),$G61,0)","v":0},0,0,0,0,{"$f":"IF($G61=\"F\",$G61,0)","v":0},0,0,0,0,0,0,0,0,0,0,{"$f":"IF($G61=\"F\",$G61,0)","v":0},null,null,null,null,null,null,null,null,null,null,null,null,null,null,{"$f":"IF(OR($G61=\"F\",$G61=\"T\"),$G61,0)","v":0},{"$f":"IF($G61=\"F\",$G61,0)","v":0},0,0,{"$f":"$G61","v":"D"},{"$f":"IF(OR($G61=\"F\",$G61=\"T\"),$G61,0)","v":0},0,0,0,0,0,{"$f":"IF(AND(LEN($A61)=2,OR($G61=\"F\",$G61=\"T\")),$G61,0)","v":0},0,0]
["FRB","Maling",null,"Olie, Malerbehandlet overflade, Malerbehandling, Lak, Lud","klimabeskyttende komponent i form af en hærdet hinde på overflade af en anden bygningsdel    "," ","D",0,0,0,0,0,0,0,0,0,0,0,0,0,0,0,0,0,null,null,null,null,null,null,null,null,null,null,null,null,null,null,0,0,0,0,"D",0,0,0,0,0,0,0,0,0]
["NCB","Vægbeklædning",null,"Tapet, Vægpanel, Glasplade, Gipsplade, Fiberbetonplade, Facadebeklædning, Beklædningsplade","afdækkende komponent i form af ydre lag i vægopbygning"," ","D",0,0,0,0,0,0,0,0,0,0,0,0,0,0,0,0,0,null,null,null,null,null,null,null,null,null,null,null,null,null,null,0,0,0,0,"D",0,0,0,0,0,0,0,0,0]
["NCC","Gulvbelægning",null,"Korkbelægning, Tekstilbelægning, tæppefliser, Vinylbelægning, Gulvbeklædning, Fast tæppe, Linoleumbelægning, Beklædningsplade","afdækkende komponent i form af øvre lag i dækopbygning"," ","D",0,0,0,0,0,0,0,0,0,0,0,0,0,0,0,0,0,null,null,null,null,null,null,null,null,null,null,null,null,null,null,0,0,0,0,"D",0,0,0,0,0,0,0,0,0]
["NCD","Loftbeklædning",null,"Glasplade, Gipsplade, Fiberbetonplade, Loftplade, Beklædningsplade","afdækkende komponent i form af underliggende lag i dækopbygning"," ","D",0,0,0,0,0,0,0,0,0,0,0,0,0,0,0,0,0,null,null,null,null,null,null,null,null,null,null,null,null,null,null,0,0,0,0,"D",0,0,0,0,0,0,0,0,0]
["NCE","Tagdækning",null,"Tagbeklædning, Tagbelægning, Undertag","afdækkende komponent i form af øvre lag i en tagopbygning"," ","D",0,0,0,0,0,0,0,0,0,0,0,0,0,0,0,0,0,null,null,null,null,null,null,null,null,null,null,null,null,null,null,0,0,0,0,"D",0,0,0,0,0,0,0,0,0]
["7/25","Adgangsgivende bygningsdele",null,null,null,null,{"$f":"COUNTA(G68:G78)","v":11}]
["KB","Dør- og vinduesoplukkeanlæg",null,"Naturlig ventilation, Komfortventilation, Røgudluftning, Røgventilation, Brandventilation","behandlende teknisk system for automatisk åbning og lukning af dører og vinduer"," ","F",{"$f":"IF(OR($G68=\"F\",$G68=\"T\"),$G68,0)","v":"F"},"F","F","F","F",{"$f":"IF($G68=\"F\",$G68,0)","v":"F"},"F","F","F","F","F","F","F","F","F","F",{"$f":"IF($G68=\"F\",$G68,0)","v":"F"},null,null,null,null,null,null,null,null,null,null,null,null,null,null,{"$f":"IF(OR($G68=\"F\",$G68=\"T\"),$G68,0)","v":"F"},{"$f":"IF($G68=\"F\",$G68,0)","v":"F"},"F","F",{"$f":"$G68","v":"F"},{"$f":"IF(OR($G68=\"F\",$G68=\"T\"),$G68,0)","v":"F"},"F","F","F","F","F",{"$f":"IF(AND(LEN($A68)=2,OR($G68=\"F\",$G68=\"T\")),$G68,0)","v":"F"},"F","F"]
["KL","Adgangsanlæg",null,"Karrusel, Pullertanlæg, Speedgate, Speedlane, Sluse, Betalingsanlæg, Bomanlæg","behandlende teknisk system for fysisk adskillelse af personflow"," ","F","F","F","F","F","F","F","F","F","F","F","F","F","F","F","F","F","F",null,null,null,null,null,null,null,null,null,null,null,null,null,null,"F","F","F","F","F","F","F","F","F","F","F","F","F","F"]
["MAC","Elektrisk aktuator",null,"Vinduesoplukker, Døråbner, Aktuator, Portåbner","elektromagnetisk drivkomponent der omsætter et elektrisk kommandosignal til en kraftig mekanisk handling"," ","D",0,0,0,0,0,0,0,0,0,0,0,0,0,0,0,0,0,null,null,null,null,null,null,null,null,null,null,null,null,null,null,0,0,0,0,"D",0,0,0,0,0,0,0,0,0]
["MLA","Mekanisk aktuator",null,"Vindusoplukker, Aktuator","mekanisk drivkomponent der omsætter et mekanisk kommandosignal til en kraftig mekanisk handling"," ","D",0,0,0,0,0,0,0,0,0,0,0,0,0,0,0,0,0,null,null,null,null,null,null,null,null,null,null,null,null,null,null,0,0,0,0,"D",0,0,0,0,0,0,0,0,0]
["MLB","Dørlukker",null,"Dørfjeder, Dørpumpe, Dørtilslutter","mekanisk drivkomponent der automatisk lukker dører","Datablad knyttes til relevante BD-kort for døre","D",0,0,0,0,0,0,0,0,0,0,0,0,0,0,0,0,0,null,null,null,null,null,null,null,null,null,null,null,null,null,null,0,0,0,0,"D",0,0,0,0,0,0,0,0,0]
["QQA","Vindue",null,"2-fagsvindue, Vindueselement, Vinduesparti, Dannebrogsvindue, Bondehusvindue, Biforium","adgangsgivende komponent for lysindfald"," ","D",0,0,0,0,0,0,0,0,0,0,0,0,0,0,0,0,0,null,null,null,null,null,null,null,null,null,null,null,null,null,null,0,0,0,0,"D",0,0,0,0,0,0,0,0,0]
["QQB","Vinduesparti",null,"Glasfacade, Glasparti, Dørparti","større adgangsgivende komponent for lysindfald og/eller personer"," ","D",0,0,0,0,0,0,0,0,0,0,0,0,0,0,0,0,0,null,null,null,null,null,null,null,null,null,null,null,null,null,null,0,0,0,0,"D",0,0,0,0,0,0,0,0,0]
["QQC","Dør",null,"Indgang, Halvandendør, Hoveddør, Hæve-/ skydedør, Karusseldør, Terrassedør, Dørelement, Dørparti, Dobbbeltdør, Yderdør, Udgang, Automatisk dør, Skydedør, Ståldør, Svingdør, Foldedør, Fransk dør, Lyddør, Elevatordør, Enkeltdør, Entredør, Branddør","adgangsgivende komponent primært for personer","Kun branddøre og døre med ABDL. Oprettes pr. type fra 3D-elementgrupper.","T","T","T","T","T","T","T","T","T","T","T","T","T","T","T","T",{"$f":"IF(OR($G75=\"F\",$G75=\"T\"),$G75,0)","v":"T"},0,"F",null,null,null,null,null,null,null,null,null,null,null,null,null,null,null,null,null,"T","T",null,"T","T","T",null,0,0,0]
["QQD","Lem",null,"Inspektionslem, Inspektionsluge, Kælderlem, Taglem, Tagluge, Gulvlem, Røglem, Renseanordning, Serveringsluge, Skunklem, Luge, Loftslem","mindre adgangsgivende komponent for personer og materiel","Kun brandlemme og lemme med ABDL. Oprettes pr. type fra 3D-elementgrupper.","T","T","T","T","T","T","T","T","T","T","T","T","T","T","T","T","T",0,"F",null,null,null,null,null,null,null,null,null,null,null,null,null,null,null,null,null,"T","T",null,"T","T","T",null,0,0,0]
["QQE","Port",null,"Hejseport, Garageport, Rulleport, Portelement, Portparti, Skydeport, Ladeport","adgangsgivende komponent primært for materiel"," ","D",0,0,0,0,0,0,0,0,0,0,0,0,0,0,0,0,0,null,null,null,null,null,null,null,null,null,null,null,null,null,null,0,0,0,0,"D",0,0,0,0,0,0,0,0,0]
["QQF","Låge",null,"Havelåge, Hegnslåge, Portlåge, Led","adgangsgivende komponent for uderum"," ","D",0,0,0,0,0,0,0,0,0,0,0,0,0,0,0,0,0,null,null,null,null,null,null,null,null,null,null,null,null,null,null,0,0,0,0,"D",0,0,0,0,0,0,0,0,0]
["8/25","Afskærmende bygningsdele",null,null,null,null,{"$f":"COUNTA(G80:G81)","v":2}]
["KA","Solafskærmningsanlæg",null,"Mørklægning, Solafskærmning","behandlende teknisk system for begrænsning eller lukning for lysindfald i en bygning","Det styrende anlæg. Motorer som driftsopgave.","F","F","F","F","F","F",{"$f":"IF($G80=\"F\",$G80,0)","v":"F"},"F",{"$f":"IF(OR($G80=\"F\",$G80=\"T\"),$G80,0)","v":"F"},"F","F","F","F","F","F","F","F","F",null,null,null,null,null,null,null,null,null,null,null,null,null,null,{"$f":"IF(OR($G80=\"F\",$G80=\"T\"),$G80,0)","v":"F"},{"$f":"IF($G80=\"F\",$G80,0)","v":"F"},null,"F",{"$f":"$G80","v":"F"},{"$f":"IF(OR($G80=\"F\",$G80=\"T\"),$G80,0)","v":"F"},"F","F","F","F","F",{"$f":"IF(AND(LEN($A80)=2,OR($G80=\"F\",$G80=\"T\")),$G80,0)","v":"F"},"F","F"]
["RQD","Skærm",null,"Vindskærm, Markise, Solafskærmning, Strålingsskærm, Lamelskærm, Baldakin","miljøstabiliserende komponent der begrænser lys, vind, nedbør og stråling  "," ","D",0,0,0,0,0,0,0,0,0,0,0,0,0,0,0,0,0,null,null,null,null,null,null,null,null,null,null,null,null,null,null,{"$f":"IF(OR($G81=\"F\",$G81=\"T\"),$G81,0)","v":0},0,0,0,{"$f":"$G81","v":"D"},0,0,0,0,0,0,0,0,0]
["MAA","Elektromotor",null,"Hjælpemotor, Motor","elektromagnetisk drivkomponent der omsætter elektrisk energi til kinetisk energi i form af mekanisk rotation"," ","D",0,0,0,0,0,0,0,0,0,0,0,0,0,0,0,0,0,null,null,null,null,null,null,null,null,null,null,null,null,null,null,{"$f":"IF(OR($G82=\"F\",$G82=\"T\"),$G82,0)","v":0},0,0,0,{"$f":"$G82","v":"D"},0,0,0,0,0,0,0,0,0]
["9/25","Elforsyning og fordeling",null,null,null,null,{"$f":"COUNTA(G84:G95)","v":8}]
["HG","EL-forsyningsanlæg",null,"Nødforsyningsanlæg, Vandkraftanlæg, Vindmølleanlæg, Generatoranlæg, Reserveforsyningsanlæg, Ups-anlæg (batterianlæg), Solcelleanlæg, El-stik (offentlig forsyning), El-anlæg","forsynende teknisk system for elektrisk energi","Overkomponent til tavler.","F","F","F","F","F","F",{"$f":"IF($G84=\"F\",$G84,0)","v":"F"},"F",null,null,null,null,null,null,null,null,null,null,null,null,null,null,null,null,null,null,null,null,null,null,null,null,null,null,{"$f":"IF($G84=\"F\",$G84,0)","v":"F"},"F",null,null,null,null,null,null,null,{"$f":"IF(AND(LEN($A84)=2,OR($G84=\"F\",$G84=\"T\")),$G84,0)","v":"F"},"F","F"]
["JK","EL-fordelingsanlæg",null,"El-forsyningsanlæg, El-anlæg, Elektrisk distributionsanlæg","transporterende teknisk system for elektrisk energi"," ",null,{"$f":"IF(OR($G85=\"F\",$G85=\"T\"),$G85,0)","v":0},0,0,0,0,0,0,{"$f":"IF(OR($G85=\"F\",$G85=\"T\"),$G85,0)","v":0},0,0,0,0,0,0,0,0,0,null,null,null,null,null,null,null,null,null,null,null,null,null,null,{"$f":"IF(OR($G85=\"F\",$G85=\"T\"),$G85,0)","v":0},0,0,0,{"$f":"$G85","v":0},{"$f":"IF(OR($G85=\"F\",$G85=\"T\"),$G85,0)","v":0},0,0,0,0,0,0,0,0]
["GCA","Solcelle",null,null,"strålingsenergi komponent der anvender lys og varme fra solen til at producere elektricitet eller varme"," ",null,0,0,0,0,0,0,0,0,0,0,0,0,0,0,0,0,0,null,null,null,null,null,null,null,null,null,null,null,null,null,null,0,0,0,0,0,0,0,0,0,0,0,0,0,0]
["GAA","Generator",null,"Nød-Generator, Generator, Diselgenerator","mekanisk energikomponent der producerer vekselstrøm"," ",null,0,0,0,0,0,0,0,0,0,0,0,0,0,0,0,0,0,null,null,null,null,null,null,null,null,null,null,null,null,null,null,0,0,0,0,0,0,0,0,0,0,0,0,0,0]
["KFA","Relæ",null,"Kontaktorrelæ, overdragerelæ, hjælperelæ","elektrisk signalinformation komponent der slutter og bryder andre elektriske strømme uden tidsforskydning"," ",null,0,0,0,0,0,0,0,0,0,0,0,0,0,0,0,0,0,null,null,null,null,null,null,null,null,null,null,null,null,null,null,0,0,0,0,0,0,0,0,0,0,0,0,0,0]
["RBA","Afbrydelsesfri strømforsyning",null,"UPS","elektrisk stabiliserende komponent der kontinuert sikrer strømforsyning","Fremgår det af en el tegning?","D",0,0,0,0,0,0,0,0,0,0,0,0,0,0,0,0,0,null,null,null,null,null,null,null,null,null,null,null,null,null,null,0,0,0,0,"D",0,0,0,0,0,0,0,0,0]
["UAA","EL-tavle",null,"IBI-boks, Hovedtavle, Højspændingsfelt, Kabelskab, Kontroltavle, Tavle, Transformerkiosk, Generatortavle, Gruppetavle (etagetavle), UPS-tavle, Underskab, Skab, Fordelingstavle, CTS-hovedtavle, CTS-undertavle, Centralskab, El-Skab, Boks","lukket indkapslende komponent for elektrisk koblingsmateriel"," ","F","F","F","F","F","F","F","F","F","F","F","F","F","F","F","F","F","F",null,null,null,null,null,null,null,null,null,null,null,null,"F","F","F","F","F","F","F","F","F","F","F","F","F","F","F","F"]
["UBA","Kabelføringsvej",null,"Installationskanal, Kabling, Kabelbakke, Kabelgrav (kabelblok), Kabelkanal, Kabelstige, Kabelplade, Trækrør, Gitterbakke, Gulvboks, Gulvkanal, Fiberrunner, Føringsvej, Føringsrør","ikke-isolerende fuldt understøttende komponent"," ","D",0,0,0,0,0,0,0,0,0,0,0,0,0,0,0,0,0,null,null,null,null,null,null,null,null,null,null,null,null,null,null,0,0,0,0,"D",0,0,0,0,0,0,{"$f":"IF(AND(LEN($A91)=2,OR($G91=\"F\",$G91=\"T\")),$G91,0)","v":0},0,0]
["WBA","Højspændingskanalskinne",null,"Kanalskinner, Samleskinne","højspændingstransporterende komponent der transporterer højspænding mellem flere punkter"," ","D",0,0,0,0,0,0,0,0,0,0,0,0,0,0,0,0,0,null,null,null,null,null,null,null,null,null,null,null,null,null,null,0,0,0,0,"D",0,0,0,0,0,0,0,0,0]
["WBB","Højspændingskabel",null,"Højspaendingsanlaeg, Kabel, Stikledning, Luftledninger for højspændingsanlæg, Ledninger i jord for højspændingsanlæg","højspændingstransporterende komponent der transporterer højspænding mellem to punkter"," ","D",0,0,0,0,0,0,0,0,0,0,0,0,0,0,0,0,0,null,null,null,null,null,null,null,null,null,null,null,null,null,null,0,0,0,0,"D",0,0,0,0,0,0,0,0,0]
["WDA","Lavspæningskanalskinne",null,"Kanalskinner, Samleskinne","lavspændingstransporterende komponent der transporterer lavspænding mellem flere punkter"," ","D",0,0,0,0,0,0,0,0,0,0,0,0,0,0,0,0,0,null,null,null,null,null,null,null,null,null,null,null,null,null,null,0,0,0,0,"D",0,0,0,0,0,0,0,0,0]
["WDB","Lavspændingskabel",null,"Hovedledning, Kabel, Gruppeledning, Stikledning, Luftledninger for lavspaendingsanlaeg, Ledninger i jord for lavspændingsanlæg, Lavspændingsanlæg","lavspændingstransporterende komponent der transporterer lavspænding mellem to punkter"," ","D",0,0,0,0,0,0,0,0,0,0,0,0,0,0,0,0,0,null,null,null,null,null,null,null,null,null,null,null,null,null,null,0,0,0,0,"D",0,0,0,0,0,0,0,0,0]
["10/25","Transformerende komponenter",null,null,null,null,{"$f":"COUNTA(G97:G108)","v":12}]
["KH","Omformeranlæg",null,"Inverteranlæg, Transformeranlæg","behandlende teknisk system for omforming af elektrisk energi"," ","F",{"$f":"IF(OR($G97=\"F\",$G97=\"T\"),$G97,0)","v":"F"},"F","F","F","F",{"$f":"IF($G97=\"F\",$G97,0)","v":"F"},"F",{"$f":"IF(OR($G97=\"F\",$G97=\"T\"),$G97,0)","v":"F"},"F","F","F","F","F","F","F","F","F",null,null,null,null,null,null,null,null,null,null,null,null,null,null,{"$f":"IF(OR($G97=\"F\",$G97=\"T\"),$G97,0)","v":"F"},{"$f":"IF($G97=\"F\",$G97,0)","v":"F"},"F","F",{"$f":"$G97","v":"F"},{"$f":"IF(OR($G97=\"F\",$G97=\"T\"),$G97,0)","v":"F"},"F","F","F","F","F",{"$f":"IF(AND(LEN($A97)=2,OR($G97=\"F\",$G97=\"T\")),$G97,0)","v":"F"},"F","F"]
["BAA","Spændingsmålerelæ",null,"Målerelæ, Måleværdiomformer","elektrisk potentialeomformende komponent der omformer til andet elektrisk signal i faste trin"," ","D",0,0,0,0,0,0,0,0,0,0,0,0,0,0,0,0,0,null,null,null,null,null,null,null,null,null,null,null,null,null,null,0,0,0,0,"D",0,0,0,0,0,0,0,0,0]
["BAB","Spændingsmåletransformer",null,"Spændingstransformer","elektrisk potentialeomformende komponent der trinløst omformer til andet elektrisk signal"," ","D",0,0,0,0,0,0,0,0,0,0,0,0,0,0,0,0,0,null,null,null,null,null,null,null,null,null,null,null,null,null,null,0,0,0,0,"D",0,0,0,0,0,0,0,0,0]
["BCA","Strømmålerelæ",null,"Målerelæ, Måleværdiomformer","elektrisk strømomformende komponent der omformer til et andet elektrisk signal i faste trin"," ","D",0,0,0,0,0,0,0,0,0,0,0,0,0,0,0,0,0,null,null,null,null,null,null,null,null,null,null,null,null,null,null,0,0,0,0,"D",0,0,0,0,0,0,0,0,0]
["BCB","Strømmåletransformer ",null,"Strømtransformer","elektrisk strømomformende komponent der trinløst omformer til et andet elektrisk signal"," ","D",0,0,0,0,0,0,0,0,0,0,0,0,0,0,0,0,0,null,null,null,null,null,null,null,null,null,null,null,null,null,null,0,0,0,0,"D",0,0,0,0,0,0,0,0,0]
["BEA","Elektromagnetisk målerelæ",null,"Målerelæ, Måleværdiomformer","elektromagnetisk variabelomformende komponent der omformer til et andet elektrisk signal i faste trin"," ","D",0,0,0,0,0,0,0,0,0,0,0,0,0,0,0,0,0,null,null,null,null,null,null,null,null,null,null,null,null,null,null,0,0,0,0,"D",0,0,0,0,0,0,0,0,0]
["BEB","Elektromagnetisk måletransformer",null,"Måletransformer","elektromagnetisk variabelomformende komponent der omformer til et andet elektrisk signal trinløst"," ","D",0,0,0,0,0,0,0,0,0,0,0,0,0,0,0,0,0,null,null,null,null,null,null,null,null,null,null,null,null,null,null,0,0,0,0,"D",0,0,0,0,0,0,0,0,0]
["TAA","Transformer",null,"Ringkernetransformer, Autotransformer, Skilletransformer, Elektronisk transformer","elektrisk energiomformende komponent der omsætter vekselstrøm fra én spænding til en anden"," ","D",0,0,0,0,0,0,0,0,0,0,0,0,0,0,0,0,0,null,null,null,null,null,null,null,null,null,null,null,null,null,null,0,0,0,0,"D",0,0,0,0,0,0,0,0,0]
["TAB","Adskillelsestransformer",null,null,"elektrisk energiomformende komponent der adskiller to elektriske kredse galvanisk med ensartet spænding på begge sider"," ","D",0,0,0,0,0,0,0,0,0,0,0,0,0,0,0,0,0,null,null,null,null,null,null,null,null,null,null,null,null,null,null,0,0,0,0,"D",0,0,0,0,0,0,0,0,0]
["TAC","Ensretter",null,"Tyristorstyring, Ac/dc omformer","elektrisk energiomformende komponent der omdanner vekselstrøm til jævnstrøm"," ","D",0,0,0,0,0,0,0,0,0,0,0,0,0,0,0,0,0,null,null,null,null,null,null,null,null,null,null,null,null,null,null,0,0,0,0,"D",0,0,0,0,0,0,0,0,0]
["TAD","Vekselretter",null,"Inverter, Dc/ac omformer","elektrisk energiomformende komponent der omdanner jævnstrøm til vekselstrøm"," ","D",0,0,0,0,0,0,0,0,0,0,0,0,0,0,0,0,0,null,null,null,null,null,null,null,null,null,null,null,null,null,null,0,0,0,0,"D",0,0,0,0,0,0,0,0,0]
["TAE","Frekvensomformer",null,"Ac/ac omformer, Switch mode power supply, Frekvensformeranlæg, Lysdæmper","elektrisk energiomformende komponent der omsætter vekselstrømseffekt til tilsvarende effekt ved en anden frekvens (AC/AC)","Indgår som driftsopgave på hovedkomponent","D",0,0,0,0,0,0,0,0,0,0,0,0,0,0,0,0,0,null,null,null,null,null,null,null,null,null,null,null,null,null,null,0,0,0,0,"D",0,0,0,0,0,0,0,0,0]
["11/25","Belysning",null,null,null,null,{"$f":"COUNTA(G110:G111)","v":2}]
["HH","Belysningsanlæg",null,"Idrætsanlægsbelysning, Nødbelysningsanlæg, Vejbelysningsanlæg, Gade og vejbelysning, Rengøringsbelysning, Reservebelysningsanlæg, Udendørs belysningsanlæg, Almen belysning, Perronbelysning, Panikbelysning, Park og havebelysningsanlæg, Særbelysning, Sikkerhedsbelysning, Servicebelysning, Skiltebelysning, Speciel belysning, Flugtvejsbelysning, Lavvoltbelysning, Effektbelysning, Baneterrænbelysning","forsynende teknisk system for elektrisk lys"," ","F",{"$f":"IF(OR($G110=\"F\",$G110=\"T\"),$G110,0)","v":"F"},"F","F","F","F",{"$f":"IF($G110=\"F\",$G110,0)","v":"F"},"F",{"$f":"IF(OR($G110=\"F\",$G110=\"T\"),$G110,0)","v":"F"},"F","F","F","F","F","F","F","F","F",null,null,null,null,null,null,null,null,null,null,null,null,null,null,{"$f":"IF(OR($G110=\"F\",$G110=\"T\"),$G110,0)","v":"F"},{"$f":"IF($G110=\"F\",$G110,0)","v":"F"},"F","F",{"$f":"$G110","v":"F"},{"$f":"IF(OR($G110=\"F\",$G110=\"T\"),$G110,0)","v":"F"},"F","F","F","F","F",{"$f":"IF(AND(LEN($A110)=2,OR($G110=\"F\",$G110=\"T\")),$G110,0)","v":"F"},"F","F"]
["UAC","Belysningsarmatur",null,"Armatur, lysarmatur, fatning","helt eller delvist lukket indkapslende komponent for lyskilde"," ","D",0,0,0,0,0,0,0,0,0,0,0,0,0,0,0,0,0,null,null,null,null,null,null,null,null,null,null,null,null,null,null,{"$f":"IF(OR($G111=\"F\",$G111=\"T\"),$G111,0)","v":0},0,0,0,{"$f":"$G111","v":"D"},0,0,0,0,0,0,0,0,0]
["12/25","Transport",null,null,null,null,{"$f":"COUNTA(G113:G115)","v":1}]
["JM","Persontransportanlæg",null,"Elevator, Handicaplift (lift), Rullende trappe, Rullefortorv (travalator), Rulletrappe (escalator)","transporterende teknisk system for personer","Elevator","F",{"$f":"IF(OR($G113=\"F\",$G113=\"T\"),$G113,0)","v":"F"},"F","F","F","F",{"$f":"IF($G113=\"F\",$G113,0)","v":"F"},"F",{"$f":"IF(OR($G113=\"F\",$G113=\"T\"),$G113,0)","v":"F"},"F","F","F","F","F","F","F","F","F",null,null,null,null,null,"F",null,null,null,null,null,null,null,null,null,null,{"$f":"IF($G113=\"F\",$G113,0)","v":"F"},"F",{"$f":"$G113","v":"F"},{"$f":"IF(OR($G113=\"F\",$G113=\"T\"),$G113,0)","v":"F"},"F","F","F","F","F",{"$f":"IF(AND(LEN($A113)=2,OR($G113=\"F\",$G113=\"T\")),$G113,0)","v":"F"},"F","F"]
["JN","Godstransportanlæg",null,"Kran, Transportbånd, Vareelevator, Godselevator, Rørpostanlæg, Sengetransportanlæg, Lift, Byggelevator","transporterende teknisk system for fast gods eller pakker"," ",null,0,0,0,0,0,0,0,0,0,0,0,0,0,0,0,0,0,null,null,null,null,null,null,null,null,null,null,null,null,null,null,null,null,0,0,{"$f":"$G114","v":0},0,0,0,0,0,0,0,0,0]
["CND","Elevatorstol",null,null,"flytbar stoflagrende komponent til personer eller gods"," ",null,0,0,0,0,0,0,0,0,0,0,0,0,0,0,0,0,0,null,null,null,null,null,null,null,null,null,null,null,null,null,null,{"$f":"IF(OR($G115=\"F\",$G115=\"T\"),$G115,0)","v":0},0,0,0,{"$f":"$G115","v":0},0,0,0,0,0,0,0,0,0]
["13/25","Bortledning",null,null,null,null,{"$f":"COUNTA(G117:G126)","v":9}]
["JD","Bortledningsanlæg",null,"Nedsivningsanlæg, Kloak, Regnvand, Regnvandsanlæg, Rodzoneanlæg, Afløb, Spildevandsopsamling, Spildevand, Solvent, Fordampningsanlæg","transporterende teknisk system for spildevand og -væsker","Overkomponent til pumper","F",{"$f":"IF(OR($G117=\"F\",$G117=\"T\"),$G117,0)","v":"F"},"F","F","F","F",{"$f":"IF($G117=\"F\",$G117,0)","v":"F"},"F",null,null,null,null,null,null,null,null,null,null,null,null,null,null,null,null,null,null,null,null,null,null,null,null,null,null,{"$f":"IF($G117=\"F\",$G117,0)","v":"F"},"F",null,null,null,{"$f":"IF(OR($G117=\"F\",$G117=\"T\"),$G117,0)","v":"F"},"F","F","F",{"$f":"IF(AND(LEN($A117)=2,OR($G117=\"F\",$G117=\"T\")),$G117,0)","v":"F"},"F","F"]
["JE","Affaldssystem",null,"Komposteringsanlæg, Affaldslager, Skraldesug","transporterende teknisk system for affald"," ",null,0,0,0,0,0,0,0,{"$f":"IF(OR($G118=\"F\",$G118=\"T\"),$G118,0)","v":0},0,0,0,0,0,0,0,0,0,null,null,null,null,null,null,null,null,null,null,null,null,null,null,{"$f":"IF(OR($G118=\"F\",$G118=\"T\"),$G118,0)","v":0},0,0,0,{"$f":"$G118","v":0},0,0,0,0,0,0,0,0,0]
["KF","Pumpeanlæg",null,"Trykforøgeranlæg, Vandpumpeanlæg, Grundvandspumpeanlæg, Drænpumpeanlæg, Afløbspumpeanlæg, Pumpebrønd","behandlende teknisk system for generering af et flow i væske","Styretavle","F","F","F","F","F","F","F","F","F","F","F","F","F","F","F","F","F","F",null,null,"F",null,null,null,null,null,"F",null,null,null,null,null,"F","F","F","F","F","F","F","F","F","F","F","F","F","F"]
["GPA","Pumpe",null,"Cirkulationspumpe, Trykforøger, Trykforøgerpumpe, Trykholdepumpe, Doseringspumpe, Lænsepumpe","væskegivende komponent der transporterer væske ved mekanisk fremføring"," ","F","F","F","F","F","F","F","F","F","F","F","F","F","F","F","F","F","F",null,null,"F","F",null,null,null,null,"F",null,null,null,null,null,"F","F","F","F","F","F","F","F","F","F","F",0,0,0]
["RMD","Vandlås",null,null,"væskebegrænsende komponent der forhindrer eller begrænser lugt fra et afløbssystem"," ","D",0,0,0,0,0,0,0,0,0,0,0,0,0,0,0,0,0,null,null,null,null,null,null,null,null,null,null,null,null,null,null,0,0,0,0,"D",0,0,0,0,0,0,0,0,0]
["XLC","Vask",null,"Opsamlingsenhed, Håndvask, Køkkenvask, Vaskebord, Vaskerende, Grovvask, Rengøringsvask, Udslagsvask, Støvlevask, Stålvask, Laboratorievask, Bidet","kapsel-flow forbindende komponent der opsamler og bortskaffer spildevand"," ","D",0,0,0,0,0,0,0,0,0,0,0,0,0,0,0,0,0,null,null,null,null,null,null,null,null,null,null,null,null,null,null,0,0,0,0,"D",0,0,0,0,0,0,0,0,0]
["XLD","Toilet",null,"WC, Kloset, Vandkloset","kapsel-flow forbindende komponent der opsamler og bortskaffer urin og fækalier"," ","D",0,0,0,0,0,0,0,0,0,0,0,0,0,0,0,0,0,null,null,null,null,null,null,null,null,null,null,null,null,null,null,0,0,0,0,"D",0,0,0,0,0,0,0,0,0]
["XLE","Urinal",null,"Opsamlingsenhed","kapsel-flow forbindende komponent der opsamler og bortskaffer urin"," ","D",0,0,0,0,0,0,0,0,0,0,0,0,0,0,0,0,0,null,null,null,null,null,null,null,null,null,null,null,null,null,null,0,0,0,0,"D",0,0,0,0,0,0,0,0,0]
["XLH","Gulvafløb",null,"Afløbsrende, Specialafløb","kapsel-flow forbindende komponent der opsamler og bortskaffer overskydende vand fra gulv"," ","D",0,0,0,0,0,0,0,0,0,0,0,0,0,0,0,0,0,null,null,null,null,null,null,null,null,null,null,null,null,null,null,0,0,0,0,"D",0,0,0,0,0,0,0,0,0]
["XME","Brønd",null,"Nedløbsbrønd, Kondensatkasse, Tagbrønd, Vejbrønd, Drænebrønde, Drænbrønd, Rendestensbrønde, Prøveudtagningsbrønd, Pumpebrønd, Sandfangsbrønd, Snydebrøndnd / tørbrønd, Spulebrønd, Forsinkelsesbrønd","flow-flow forbindende komponent der indkapsler og muliggør forbindelse mellem flere flowkredse"," ","D",0,0,0,0,0,0,0,0,0,0,0,0,0,0,0,0,0,null,null,null,null,null,null,null,null,null,null,null,null,null,null,0,0,0,0,"D",0,0,0,0,0,0,0,0,0]
["14/25","Vand- og væskeforsyning",null,null,null,null,{"$f":"COUNTA(G128:G138)","v":9}]
["HB","Vandforsyningsanlæg",null,"Vandstik (offentlig forsyning), Vandanlæg, Grundvandsindvindingsanlæg, Grundvandskøling, Regnvandsindvindingsanlæg","forsynende teknisk system for vand","Overkomponent til pumper, varmeveksler, ventiler","F",{"$f":"IF(OR($G128=\"F\",$G128=\"T\"),$G128,0)","v":"F"},"F","F","F","F","F","F",null,null,null,null,null,null,null,null,null,null,null,null,null,null,null,null,null,null,null,null,null,null,null,null,null,null,null,"F",null,null,null,"F","F","F","F",{"$f":"IF(AND(LEN($A128)=2,OR($G128=\"F\",$G128=\"T\")),$G128,0)","v":"F"},"F","F"]
["JB","Vandfordelingsanlæg",null,"Overrislingsanlæg, Koldt brugsvand, Teknisk vand, Varmt brugsvand, Vandfordeling, Vandingsanlæg, Drypvandingsanlæg, Sprinklervandingsanlæg, Stigrøranlæg, Brandvand","transporterende teknisk system for vand"," ",null,0,0,0,0,0,0,0,0,0,0,0,0,0,0,0,0,0,null,null,null,null,null,null,null,null,null,null,null,null,null,null,0,0,0,0,0,0,0,0,0,0,0,0,0,0]
["JC","Kemikaliefordelingsanlæg",null,"Spritanlæg","transporterende teknisk system for brandbare væsker eller andre kemikalier"," ","F","F","F","F","F","F","F","F",{"$f":"IF(OR($G130=\"F\",$G130=\"T\"),$G130,0)","v":"F"},"F","F","F","F","F","F","F","F","F",null,null,"F",null,null,null,null,null,null,null,null,null,null,null,"F","F","F","F","F","F","F","F","F","F","F","F","F","F"]
["EPB","Vandvarmer",null,null,"varmeoverførselskomponent der opvarmer vand til forbrug","Der menes varmeveksler","F","F","F","F","F","F","F","F","F","F","F","F","F","F","F","F","F","F",null,null,"F","F",null,null,null,null,null,null,null,null,null,null,"F","F","F","F","F","F","F","F","F","F","F",0,0,0]
["CPA","Varmvandsbeholder",null,null,"termisk energilagrende komponent til varmt vand"," ",null,0,0,0,0,0,0,0,0,0,0,0,0,0,0,0,0,0,null,null,null,null,null,null,null,null,null,null,null,null,null,null,0,0,0,0,0,0,0,0,0,0,0,0,0,0]
["GPA","Pumpe",null,"Cirkulationspumpe, Trykforøger, Trykforøgerpumpe, Trykholdepumpe, Doseringspumpe, Lænsepumpe","væskegivende komponent der transporterer væske ved mekanisk fremføring"," ","F","F","F","F","F","F",{"$f":"IF($G133=\"F\",$G133,0)","v":"F"},"F","F","F","F","F","F","F","F","F","F",{"$f":"IF($G133=\"F\",$G133,0)","v":"F"},null,null,"F","F",null,null,null,null,"F",null,null,null,null,null,"F",{"$f":"IF($G133=\"F\",$G133,0)","v":"F"},"F","F","F",{"$f":"IF(OR($G133=\"F\",$G133=\"T\"),$G133,0)","v":"F"},"F","F","F","F","F",0,0,0]
["HQA","Filter",null,"Neutralisator, Kulfilter, Vandrensningsfilter, Drænfilter, Planfilter, Posefilter, Snavssamler, Sandfilter, Syreneutralisator, Fedtfilter, Elektrofilter","filtrerende komponent der fjerner uønskede substanser eller partikler fra luft eller væske","Stikfiltre","F","F","F","F","F","F","F","F","F","F","F","F","F","F","F","F","F","F",null,null,null,null,null,null,null,null,null,null,null,null,null,null,"F","F","F","F","F","F","F","F","F","F","F",0,0,0]
["WPA","Rør",null,"Overløb, Indføring, Hydraulik, lækagerør, Hydraulik, trykrør, Nedløbsrør, Kondensafløb, Tagnedløb, Varmestik, Vandingsrør, Varmeledning, Vandledning, Vandstik, Gasledning, Gasstik, Drænrør, Drænledning, Røgrør, Altannedløb, Plastrør, Pex - rør, Stålrør, Skorsten, Strømpeforing, Stikledning, Flexrør, Fordelerrør, Faldstamme, Fjernvarmeledning, Lerrør, Betonrør, Brandstigerør","fast lukket transporterende komponent der leder gas, vand eller væske mellem to punkter. "," ","D",0,0,0,0,0,0,0,0,0,0,0,0,0,0,0,0,0,null,null,null,null,null,null,null,null,null,null,null,null,null,null,0,0,0,0,"D",0,0,0,0,0,0,0,0,0]
["XMC","Rørfitting",null,"Studs, Fodbøjning, Fitting","flow-flow forbindende komponent der formidler retningsændringer, afgreninger og samlinger i rør"," ","D",0,0,0,0,0,0,0,0,0,0,0,0,0,0,0,0,0,null,null,null,null,null,null,null,null,null,null,null,null,null,null,0,0,0,0,"D",0,0,0,0,0,0,0,0,0]
["XLB","Bruser",null,"Nødbruser, Tapsted, Udtag, Bruserpanel","kapsel-flow forbindende komponent der forbinder en fler-strålet aftapningsenhed til et vandsystem","Kun nødbruser, ellers D","F","F","F","F","F","F","F","F","F","F","F","F","F","F","F","F","F",null,null,null,null,null,null,null,null,null,null,null,null,null,null,null,null,null,null,null,"F","F",null,"F","F","F","F",0,0,0]
["XLA","Vandhane",null,"Tapsted, Vandpost, Gårdhane, Udtag, Aftapningshane, Slangevinder, Spulebatteri, Spulehane, Blandingsarmatur, Blandingsbatteri, Brandhane, Brandpost (brandhydrant)","kapsel-flow forbindende komponent der forbinder en en-strålet aftapningsenhed til et vandsystem"," ","D",0,0,0,0,0,0,0,0,0,0,0,0,0,0,0,0,0,null,null,null,null,null,null,null,null,null,null,null,null,null,null,0,0,0,0,"D",0,0,0,0,0,0,0,0,0]
["15/25","Køling",null,null,null,null,{"$f":"COUNTA(G140:G150)","v":8}]
["HC","Køleforsyningsanlæg",null,"Havkøling, Køleveksleranlæg, Kølestik (offentlig forsyning), Kondensatorkøleanlæg, Køleblandesløjfer, Køleproduktionsanlæg, Fjernkøleanlæg, Absorptionskøling","forsynende teknisk system for kulde","Overkomponent til køleanlæg, pumper, ventiler, buffertank, ekspansionstank mv.","F",{"$f":"IF(OR($G140=\"F\",$G140=\"T\"),$G140,0)","v":"F"},"F","F","F","F",{"$f":"IF($G140=\"F\",$G140,0)","v":"F"},"F",null,null,null,null,null,null,null,null,null,null,null,null,null,null,null,null,null,null,null,null,null,null,null,null,null,null,null,null,null,null,null,null,null,null,null,{"$f":"IF(AND(LEN($A140)=2,OR($G140=\"F\",$G140=\"T\")),$G140,0)","v":"F"},"F","F"]
["JF","Kølefordelingsanlæg",null,"Køleanlæg","transporterende teknisk system for kulde"," ",null,0,0,0,0,0,0,0,{"$f":"IF(OR($G141=\"F\",$G141=\"T\"),$G141,0)","v":0},0,0,0,0,0,0,0,0,{"$f":"IF($G141=\"F\",$G141,0)","v":0},null,null,null,null,null,null,null,null,null,null,null,null,null,null,0,{"$f":"IF($G141=\"F\",$G141,0)","v":0},0,0,0,{"$f":"IF(OR($G141=\"F\",$G141=\"T\"),$G141,0)","v":0},0,0,0,0,0,0,0,0]
["ESA","Kølemaskine",null,"Chiller, Køleanlæg","køling ved fordampning i form af nedkøling i større tekniske anlæg","Effekt (kW) = køleeffekt","F","F","F","F","F","F","F","F","F","F","F","F","F","F","F","F","F","F",null,null,null,"F",null,null,null,null,null,null,"F","F",null,null,"F","F","F","F","F","F","F","F","F","F","F","F","F","F"]
["EQA","Køleflade",null,"Kølecentraler, Køleelement, Køleloft, Køleaggregat, Kølebaffel, Kølegiver, Fancoils","konvektionskøling komponent der i form af en stor flade afgiver kulde i et lukket teknisk anlæg"," ",null,0,0,0,0,0,0,0,0,0,0,0,0,0,0,0,0,0,null,null,null,null,null,null,null,null,null,null,null,null,null,null,0,0,null,null,0,0,0,0,0,0,0,0,0,0]
["EQB","Fordamper",null,"Fordamperkondensator","konvektionskøling komponent i form af  omdannelse til gas","Effekt (kW) = køleeffekt","F","F","F","F","F","F","F","F","F","F","F","F","F","F","F","F","F","F",null,null,null,"F",null,null,null,null,null,null,null,null,null,null,"F","F","F","F","F","F","F","F","F","F","F",0,0,0]
["EQC","Kølepumpe",null,"Varme/Kølepumpe","konvektionskøling komponent der i form af termisk energi der overføres fra en kilde til en køleafleder","Effekt (kW) = køleeffekt","F","F","F","F","F","F","F","F","F","F","F","F","F","F","F","F","F","F",null,null,null,"F",null,null,null,null,null,null,null,null,null,null,"F","F","F","F","F","F","F","F","F","F","F",0,0,0]
["EQD","Køletårn",null,null,"konvektionskøling komponent der i form af afkøling af vand eller væske ved hjælp af luft","Effekt (kW) = køleeffekt","F","F","F","F","F","F","F","F","F","F","F","F","F","F","F","F","F","F",null,null,null,"F",null,null,null,null,null,null,null,null,null,null,"F","F","F","F","F","F","F","F","F","F","F",0,0,0]
["EQE","Kølepanel",null,"Kølebaffel","konvektionskøling komponent der i form af en stor flade der afgiver kulde til et rum"," ",null,0,0,0,0,0,0,0,0,0,0,0,0,0,0,0,0,0,null,null,null,null,null,null,null,null,null,null,null,null,null,null,0,0,0,0,0,0,0,0,0,0,0,0,0,0]
["EQF","Tørkøler",null,"Frikøler","konvektionskøling komponent der i form af overskudsvarme til det fri ved hjælp af mekanisk ventilering","Effekt (kW) = køleeffekt","F","F","F","F","F","F","F","F","F","F","F","F","F","F","F","F","F","F",null,null,null,"F",null,null,null,null,null,null,null,null,null,null,"F","F","F","F","F","F","F","F","F","F","F",0,0,0]
["EZC","Kølefancoil",null,null,"kombineret energigivende komponent med ventilator og ét vandveksler-kredsløb til overførsel af køling fra et medie til et andet uden at medierne blandes","Effekt (kW) = køleeffekt","F","F","F","F","F","F","F","F","F","F","F","F","F","F","F","F","F","F",null,null,null,"F",null,null,null,null,null,null,null,null,null,null,"F","F","F","F","F","F","F","F","F","F","F","F","F","F"]
["EZD","Kombineret varme- og kølefancoil",null,null,"kombineret energigivende komponent med ventilator og to vandveksler-kredsløb til overførsel af køling eller varme fra et medie (kølevand eller vandvarme) til et andet uden at medierne blandes","Effekt (kW) = køleeffekt","F","F","F","F","F","F","F","F","F","F","F","F","F","F","F","F","F","F",null,null,null,"F",null,null,null,null,null,null,null,null,null,null,"F","F","F","F","F","F","F","F","F","F","F","F","F","F"]
["16/25","Gas-, luftartsforsyning",null,null,null,null,{"$f":"COUNTA(G152:G156)","v":3}]
["HA","Gas- og luftarsforsyningsanlæg",null,"Trykluftanlæg, Vakuumanlæg, Gasstik (offentlig forsyning), Gasanlæg, Luftanlæg","forsynende teknisk system for gas eller teknisk luft","Overkomponent til kompressor og vakuumpumper","F",{"$f":"IF(OR($G152=\"F\",$G152=\"T\"),$G152,0)","v":"F"},"F","F","F","F",{"$f":"IF($G152=\"F\",$G152,0)","v":"F"},"F",null,null,null,null,null,null,null,null,null,null,null,null,null,null,null,null,null,null,null,null,null,null,null,null,"F",{"$f":"IF($G152=\"F\",$G152,0)","v":"F"},"F","F","F",{"$f":"IF(OR($G152=\"F\",$G152=\"T\"),$G152,0)","v":"F"},"F","F","F","F","F",{"$f":"IF(AND(LEN($A152)=2,OR($G152=\"F\",$G152=\"T\")),$G152,0)","v":"F"},"F","F"]
["JA","Gas- og luftarsfordelingsanlæg",null,"Gasfordeling","transporterende teknisk system for gas "," ",null,0,0,0,0,0,0,0,{"$f":"IF(OR($G153=\"F\",$G153=\"T\"),$G153,0)","v":0},0,0,0,0,0,0,0,0,{"$f":"IF($G153=\"F\",$G153,0)","v":0},null,null,null,null,null,null,null,null,null,null,null,null,null,null,0,0,0,0,0,0,0,0,0,0,0,0,0,0]
["GQA","Ventilator",null,"Kanalventilator, Tag ventilator, Vådrumsventilator, Vægventilator, Axialventilator, Processudsugningsventilatorer, Blæser, Boksventilator","gas- og luftgivende komponent der ved rotation af indbyggede propeller sætter luft i bevægelse","Er inkl. i ventilationsanlæg",null,0,0,0,0,0,0,0,0,0,0,0,0,0,0,0,0,0,null,null,null,null,null,null,null,null,null,null,null,null,null,null,0,0,0,0,0,0,0,0,0,0,0,0,0,0]
["GQB","Kompressor",null,"Kølekompressor, Trykluftskompressor","gas- og luftgivende komponent der komprimerer luft og andre gasser"," ","F","F","F","F","F","F","F","F","F","F","F","F","F","F","F","F","F","F",null,null,"F","F",null,null,null,null,"F",null,null,null,null,null,"F","F","F","F","F","F","F","F","F","F","F",0,0,0]
["GQC","Vakuumpumpe",null,null,"gas- og luftgivende komponent der genererer vakuum i luft og andre gasser"," ","F","F","F","F","F","F","F","F","F","F","F","F","F","F","F","F","F","F",null,null,"F","F",null,null,null,null,"F",null,null,null,null,null,"F","F","F","F","F","F","F","F","F","F","F",0,0,0]
["17/25","Ventiler",null,null,null,null,{"$f":"COUNTA(G158:G165)","v":8}]
["FLA","Sikkerhedsventil",null,"Overtryksventiler, Overtryksventil, Kontrolventiler, Alarmventil","trykbetinget fare komponent der udleder damp eller væske når tryk overstiger en sat grænseværdi"," ","D",{"$f":"IF(OR($G158=\"F\",$G158=\"T\"),$G158,0)","v":0},0,0,0,0,{"$f":"IF($G158=\"F\",$G158,0)","v":0},0,{"$f":"IF(OR($G158=\"F\",$G158=\"T\"),$G158,0)","v":0},0,0,0,0,0,0,0,0,{"$f":"IF($G158=\"F\",$G158,0)","v":0},null,null,null,null,null,null,null,null,null,null,null,null,null,null,0,{"$f":"IF($G158=\"F\",$G158,0)","v":0},0,0,"D",{"$f":"IF(OR($G158=\"F\",$G158=\"T\"),$G158,0)","v":0},0,0,0,0,0,{"$f":"IF(AND(LEN($A158)=2,OR($G158=\"F\",$G158=\"T\")),$G158,0)","v":0},0,0]
["FLC","Vakuumbryder",null,null,"trykbetinget fare komponent der forhindre vakuum"," ","D",0,0,0,0,0,0,0,0,0,0,0,0,0,0,0,0,0,null,null,null,null,null,null,null,null,null,null,null,null,null,null,0,0,0,0,"D",0,0,0,0,0,0,0,0,0]
["QMA","Afspærringsventil",null,"On-off ventil, Højvandsslukke, Højvandslukke, Kontrolventil, Rørafbryder, Udluftning, Magnetventil, ARS-ventil, Shut-off ventil","mekanisk koblende komponent for flow i en væskestrøm"," ","D",0,0,0,0,0,0,0,0,0,0,0,0,0,0,0,0,0,null,null,null,null,null,null,null,null,null,null,null,null,null,null,0,0,0,0,"D",0,0,0,0,0,0,0,0,0]
["QNA","Reguleringsventil",null,"Modulerende motorventil, Termostatventil, Dynamisk strengreguleringsventiler, Radiatorventil, Cirkonventil, Cirkulationsventiler","mekanisk varierende komponent for regulering af flow i en væskestrøm"," ","D",0,0,0,0,0,0,0,0,0,0,0,0,0,0,0,0,0,null,null,null,null,null,null,null,null,null,null,null,null,null,null,0,0,0,0,"D",0,0,0,0,0,0,0,0,0]
["RMA","Kontraventil",null,"Tilbagestrømningsventil","væskebegrænsende komponent der forhindrer returflow i en væskestrøm"," ","D",0,0,0,0,0,0,0,0,0,0,0,0,0,0,0,0,0,null,null,null,null,null,null,null,null,null,null,null,null,null,null,0,0,0,0,"D",0,0,0,0,0,0,0,0,0]
["RMB","Indreguleringsventil",null,"Trykbegrænser, Zoneventiler, Udluftningsventiler, Aftapningsventiler, Strengreguleringsventiler, Flowbegrænser, Cirkulationsventil","væskebegrænsende komponent der permanent begrænser et flow eller tryk i en væskestrøm"," ","D",0,0,0,0,0,0,0,0,0,0,0,0,0,0,0,0,0,null,null,null,null,null,null,null,null,null,null,null,null,null,null,0,0,0,0,"D",0,0,0,0,0,0,0,0,0]
["RMC","Dyse",null,"Dyseer, Upright sprinklerdyser, Udsugningsdyse, Pedant sprinklerdyser, Sprinkler, Side wall sprinklerdyser, Sprinklerhoved, Flowbegrænser, Concealed pendant sprinklerdyser","væskebegrænsende komponent der omsætter trykenergi i en væskestrøm til bevægelsesenergi"," ","D",0,0,0,0,0,0,0,0,0,0,0,0,0,0,0,0,0,null,null,null,null,null,null,null,null,null,null,null,null,null,null,0,0,0,0,"D",0,0,0,0,0,0,0,0,0]
["XLG","Udluftning",null,"Trykudtag, Vakuumventil, Vacuumaflufter, Udluftningshætte, Udluftningsrør, Mikrobobleaflufter, Automatisk luftudlader, Faldstammeudluftning, Luftpotte, Luftskrue, Luftudlader","kapsel-flow forbindende komponent der bortskaffer overskydende luft"," ","D",0,0,0,0,0,0,0,0,0,0,0,0,0,0,0,0,0,null,null,null,null,null,null,null,null,null,null,null,null,null,null,0,0,0,0,"D",0,0,0,0,0,0,0,0,0]
["18/25","Varme- og luftforsyning",null,null,null,null,{"$f":"COUNTA(G167:G191)","v":19}]
["HD","Varmeforsyningsanlæg",null,"Oliefyr, Jordvarmeanlæg, Halmfyr, Varmeproduktionsanlæg, Varmepumpeanlæg, Varmestik (offentlig forsyning), Varmegenvinding, Varmeveksleranlæg, Gasfyr, Geotermisk varmeanlæg, Dampanlæg (fjern- eller lokal damp), Pillefyr, Fjernvarmeanlæg, El-tracing anlæg, El-varmeanlæg, Blandeanlæg, Brændselsfyranlæg (gas, olie, træpiller, flis)","forsynende teknisk system for varme","Overkomponent til pumper, varmeveksler, ventiler","F",{"$f":"IF(OR($G167=\"F\",$G167=\"T\"),$G167,0)","v":"F"},"F","F","F","F",{"$f":"IF($G167=\"F\",$G167,0)","v":"F"},"F",null,null,null,null,null,null,null,null,null,null,null,null,null,null,null,null,null,null,null,null,null,null,null,null,null,null,null,{"$f":"IF($G167=\"F\",$G167,0)","v":"F"},"F",{"$f":"IF(OR($G167=\"F\",$G167=\"T\"),$G167,0)","v":"F"},"F","F","F","F","F",{"$f":"IF(AND(LEN($A167)=2,OR($G167=\"F\",$G167=\"T\")),$G167,0)","v":"F"},"F","F"]
["HE","Kombineret varme- og køleforsyningsanlæg",null,"Varmepumpeanlæg","forsynende teknisk system for kulde og varme","Køle/varmeeffekt","F","F","F","F","F","F","F","F",{"$f":"IF(OR($G168=\"F\",$G168=\"T\"),$G168,0)","v":"F"},"F",{"$f":"IF(OR($G168=\"F\",$G168=\"T\"),$G168,0)","v":"F"},"F","F","F","F","F","F",{"$f":"IF($G168=\"F\",$G168,0)","v":"F"},null,null,null,"T",null,null,null,null,null,null,"T","F",null,null,"F","F","F","F","F","F","F","F","F","F","F","F","F","F"]
["HF","Ventilationsanlæg",null,"Indblæsningsanlæg, Kombinerede ind- og udsugningsanlæg, Ventilationsaggregat, Ventilationsanlæg, Røgudsugningsanlæg, Udsugningsanlæg, Brandventilation","forsynende teknisk system der genererer et mekanisk flow af luft"," ","F","F","F","F","F","F","F","F","F","F","F","F","F","F","F","F","F","F",null,null,"F","F",null,null,"F","F","F","F",null,null,null,null,"F","F","F","F","F","F","F","F","F","F","F","F","F","F"]
["JG","Varmefordelingsanlæg",null,"Varmeanlæg, Blandesløjfe","transporterende teknisk system for varme"," ",null,0,0,0,0,0,0,0,0,0,0,0,0,0,0,0,0,0,null,null,null,null,null,null,null,null,null,null,null,null,null,null,0,0,0,0,0,0,0,0,0,0,0,0,0,0]
["EBB","Elektrisk varmflade",null,"Kalorifere, Varmetæppe, Varmekalorifere, Strålevarmeanlæg, El-radiator, El-ovn","elektrisk varmeenergikomponent der opvarmer omgivelserne i form af en opvarmet flade","Kalorifere dog F","D",0,0,0,0,0,0,0,0,0,0,0,0,0,0,0,0,0,null,null,null,"F",null,null,null,null,null,null,null,null,null,null,0,0,0,0,"D",0,0,0,0,0,0,0,0,0]
["EBC","Elektrisk varmekabel",null,"El-Tracing","elektrisk varmeenergikomponent der opvarmer omgivelserne i form af et fleksibelt kabel"," ","D",0,0,0,0,0,0,0,0,0,0,0,0,0,0,0,0,0,null,null,null,"T",null,null,null,null,null,null,null,null,null,null,0,0,0,0,"D",0,0,0,0,0,0,0,0,0]
["EBD","Elektrisk varmeblæser",null,"Varmlufttæppe","elektrisk varmeenergikomponent der opvarmer omgivelserne i form af varm luft i flow"," ","F","F","F","F","F","F","F","F","F","F","F","F","F","F","F","F","F","F",null,null,null,"F",null,null,null,null,null,null,null,null,null,null,"F","F","F","F","F","F","F","F","F","F","F",0,0,0]
["EBE","Elektrisk varmerør",null,"Håndklædetørrer, Varmelegeme","elektrisk varmeenergikomponent der opvarmer omgivelserne i form af et fast rørsystem"," ",null,0,0,0,0,0,0,0,0,0,0,0,0,0,0,0,0,0,null,null,null,null,null,null,null,null,null,null,null,null,null,null,0,0,0,0,0,0,0,0,0,0,0,0,0,0]
["EPA","Varmeflade",null,"Konvektor, Varmegiver, Gulvvarme, Strålevarmeloft","varmeoverførselskomponent i form af en stor flade som afgiver varme i et lukket teknisk anlæg","Varmeeffekt (kW), Er inkl. i ventilationsanlæg",null,0,0,0,0,0,0,0,0,0,0,0,0,0,0,0,0,0,null,null,null,null,null,null,null,null,null,null,null,null,null,null,0,0,0,0,0,0,0,0,0,0,0,0,0,0]
["EPC","Varmeveksler",null,"Heat-pipe, Krydsvarmeveklser, Varmegenvinder, Væskekoblet batteri, Varmegenvinding, Varmeblandesløjfe, Roterende varmeveksler (rotorveksler), Modstrømsvarmeveksler, Brugsvandsveksler, Blandesløjfe","varmeoverførselskomponent i form af varme der passerer fra et medie til et andet uden at medierne blandes"," Er inkl. i ventilationsanlæg","D",0,0,0,0,0,0,0,0,0,0,0,0,0,0,0,0,0,null,null,null,null,null,null,null,null,null,null,null,null,null,null,0,0,0,0,"D",0,0,0,0,0,0,0,0,0]
["EPD","Varmepumpe",null,"Varme/Kølepumpe","varmeoverførselskomponent i form af termisk energi fra en varmekilde til en varmeafleder"," ","F","F","F","F","F","F","F","F","F","F","F","F","F","F","F","F","F","F",null,null,null,"F",null,null,null,null,null,null,null,null,null,null,"F","F","F","F","F","F","F","F","F","F","F",0,0,0]
["EPE","Radiator",null,null,"varmeoverførselskomponent i form af en hul metalkomponent der opvarmer rum"," ","D",0,0,0,0,0,0,0,0,0,0,0,0,0,0,0,0,0,null,null,null,null,null,null,null,null,null,null,null,null,null,null,0,0,0,0,"D",0,0,0,0,0,0,0,0,0]
["EPG","Varmepanel",null,"Gulvvarme, Strålevarmepanel, Strålepanel, Strålevarmeloft, Loftvarme","varmeoverførselskomponent i form af overførsel over en stor flade der afgiver varme til et rum"," ","D",0,0,0,0,0,0,0,0,0,0,0,0,0,0,0,0,0,null,null,null,null,null,null,null,null,null,null,null,null,null,null,0,0,0,0,"D",0,0,0,0,0,0,0,0,0]
["EVA","Solfanger",null,null,"varmestrålingsenergi komponent i form af lys og varme fra solen"," ",null,0,0,0,0,0,0,0,0,0,0,0,0,0,0,0,0,0,null,null,null,null,null,null,null,null,null,null,null,null,null,null,0,0,0,0,0,0,0,0,0,0,0,0,0,0]
["EZA","Varmeventilator",null,"Varmetæppe, Varme kalorifer","kombineret energigivende komponent med ventilator og veksler til overførsel af varme ved at varme passerer fra et medie til et andet uden at medierne blandes"," ","F","F","F","F","F","F","F","F","F","F","F","F","F","F","F","F","F","F",null,null,null,"F",null,null,null,null,null,null,null,null,null,null,"F","F","F","F","F","F","F","F","F","F","F",0,0,0]
["EZB","Kulde/varmerør",null,"Gulvkøling, Gulvvarme","kombineret energigivende komponent i form af et rør til overførsel af køling eller varme"," ","D",0,0,0,0,0,0,0,0,0,0,0,0,0,0,0,0,0,null,null,null,null,null,null,null,null,null,null,null,null,null,null,{"$f":"IF(OR($G182=\"F\",$G182=\"T\"),$G182,0)","v":0},0,0,0,{"$f":"$G182","v":"D"},0,0,0,0,0,0,0,0,0]
["EZD","Kombineret varme- og kølefancoil",null,null,"kombineret energigivende komponent med ventilator og to vandveksler-kredsløb til overførsel af køling eller varme fra et medie (kølevand eller vandvarme) til et andet uden at medierne blandes","Varme/køleeffekt (kW)","F","F","F","F","F","F","F","F","F","F","F","F","F","F","F","F","F","F",null,null,null,"F",null,null,null,null,null,null,null,null,null,null,"F","F","F","F","F","F","F","F","F","F","F",0,0,0]
["GPA","Pumpe",null,"Cirkulationspumpe, Trykforøger, Trykforøgerpumpe, Trykholdepumpe, Doseringspumpe, Lænsepumpe","væskegivende komponent der transporterer væske ved mekanisk fremføring"," ","F","F","F","F","F","F","F","F","F","F","F","F","F","F","F","F","F","F",null,null,"F","F",null,null,null,null,"F",null,null,null,null,null,"F","F","F","F","F","F","F","F","F","F","F",0,0,0]
["GQA","Ventilator",null,"Kanalventilator, Tag ventilator, Vådrumsventilator, Vægventilator, Axialventilator, Processudsugningsventilatorer, Blæser, Boksventilator","gas- og luftgivende komponent der ved rotation af indbyggede propeller sætter luft i bevægelse"," ","D",0,0,0,0,0,0,0,0,0,0,0,0,0,0,0,0,0,null,null,null,null,null,null,null,null,null,null,null,null,null,null,0,0,0,0,"D",0,0,0,0,0,0,0,0,0]
["HQA","Filter",null,"Neutralisator, Kulfilter, Vandrensningsfilter, Drænfilter, Planfilter, Posefilter, Snavssamler, Sandfilter, Syreneutralisator, Fedtfilter, Elektrofilter","filtrerende komponent der fjerner uønskede substanser eller partikler fra luft eller væske","Er inkl. i ventilationsanlæg","D",0,0,0,0,0,0,0,{"$f":"IF(OR($G186=\"F\",$G186=\"T\"),$G186,0)","v":0},0,0,0,0,0,0,0,0,0,null,null,null,null,null,null,null,null,null,null,null,null,null,null,0,0,0,0,"D",0,0,0,0,0,0,0,0,0]
["TTA","Befugter",null,"Vandbefugter, Dampbefugter, Ultralydsbefugter","miksende komponent der tilfører vand til luft"," ","F","F","F","F","F","F","F","F","F","F","F","F","F","F","F","F","F","F",null,null,null,null,null,null,null,null,null,null,null,null,null,null,"F","F","F","F","F","F","F","F","F","F","F",0,0,0]
["WPA","Rør",null,"Overløb, Indføring, Hydraulik, lækagerør, Hydraulik, trykrør, Nedløbsrør, Kondensafløb, Tagnedløb, Varmestik, Vandingsrør, Varmeledning, Vandledning, Vandstik, Gasledning, Gasstik, Drænrør, Drænledning, Røgrør, Altannedløb, Plastrør, Pex - rør, Stålrør, Skorsten, Strømpeforing, Stikledning, Flexrør, Fordelerrør, Faldstamme, Fjernvarmeledning, Lerrør, Betonrør, Brandstigerør","fast lukket transporterende komponent der leder gas, vand eller væske mellem to punkter. "," ","D",0,0,0,0,0,0,0,0,0,0,0,0,0,0,0,0,0,null,null,null,null,null,null,null,null,null,null,null,null,null,null,0,0,0,0,"D",0,0,0,0,0,0,0,0,0]
["WPB","Luftkanal",null,"Indtagshætter, Ventilationskanal, Rektangulær kanal, Afkasthætter, Flexkanal, Cirkulær kanal","fast lukket transporterende komponent der leder luft mellem to punkter"," ","D",0,0,0,0,0,0,0,0,0,0,0,0,0,0,0,0,0,null,null,null,null,null,null,null,null,null,null,null,null,null,null,0,0,0,0,"D",0,0,0,0,0,0,0,0,0]
["XMC","Rørfitting",null,"Studs, Fodbøjning, Fitting","flow-flow forbindende komponent der formidler retningsændringer, afgreninger og samlinger i rør"," ",null,0,0,0,0,0,0,0,{"$f":"IF(OR($G190=\"F\",$G190=\"T\"),$G190,0)","v":0},0,0,0,0,0,0,0,0,0,null,null,null,null,null,null,null,null,null,null,null,null,null,null,0,0,0,0,0,0,0,0,0,0,0,0,0,0]
["XMF","Kanalfitting",null,"Fitting","flow-flow forbindende komponent der formidler retningsændringer, afgreninger og samlinger i kanaler"," ",null,0,0,0,0,0,0,0,0,0,0,0,0,0,0,0,0,0,null,null,null,null,null,null,null,null,null,null,null,null,null,null,0,0,0,0,0,0,0,0,0,0,0,0,0,0]
["19/25","Spjæld og armaturer",null,null,null,null,{"$f":"COUNTA(G193:G200)","v":8}]
["FLB","Sikkerhedsspjæld",null,"Overtryksspjæld","trykbetinget fare komponent der åbner eller lukker for en luftstrøm, når tryk overstiger eller går under en sat grænseværdi"," ","D",{"$f":"IF(OR($G193=\"F\",$G193=\"T\"),$G193,0)","v":0},0,0,0,0,{"$f":"IF($G193=\"F\",$G193,0)","v":0},0,{"$f":"IF(OR($G193=\"F\",$G193=\"T\"),$G193,0)","v":0},0,0,0,0,0,0,0,0,{"$f":"IF($G193=\"F\",$G193,0)","v":0},null,null,null,null,null,null,null,null,null,null,null,null,null,null,{"$f":"IF(OR($G193=\"F\",$G193=\"T\"),$G193,0)","v":0},{"$f":"IF($G193=\"F\",$G193,0)","v":0},0,0,{"$f":"$G193","v":"D"},{"$f":"IF(OR($G193=\"F\",$G193=\"T\"),$G193,0)","v":0},0,0,0,0,0,{"$f":"IF(AND(LEN($A193)=2,OR($G193=\"F\",$G193=\"T\")),$G193,0)","v":0},0,0]
["FMA","Brandspjæld",null,"Trykaflastningsspjæld (ARS)","brandsikringskomponent der lukker for en luftstrøm ved detektering af brand"," ","F","F","F","F","F","F","F","F","F","F","F","F","F","F","F","F","F","F",null,null,null,null,null,null,null,null,null,null,null,null,null,null,"F","F","F","F","F","F","F","F","F","F","F",0,0,0]
["FMB","Røgspjæld ",null,"Røglem, Røgevakueringsspjæld, Flamme og røgspjæld, Brand og røgspjæld","brandsikringskomponent der åbner eller lukker for en luftstrøm ved detektering af røg"," ","F","F","F","F","F","F","F","F","F","F","F","F","F","F","F","F","F","F",null,null,null,null,null,null,null,null,null,null,null,null,null,null,"F","F","F","F","F","F","F","F","F","F","F",0,0,0]
["FMC","Kombinerede brand- og røgspjæld",null,null,"brandsikringskomponent der lukker for en luftstrøm ved detektering af røg eller brand"," ","D",0,0,0,0,0,0,0,0,0,0,0,0,0,0,0,0,0,null,null,null,null,null,null,null,null,null,null,null,null,null,null,0,0,0,0,"D",0,0,0,0,0,0,0,0,0]
["RNA","Kontraspjæld",null,null,"luftbegrænsende komponent der forhindrer eller begrænser returflow i en luftstrøm"," ","D",0,0,0,0,0,0,0,0,0,0,0,0,0,0,0,0,0,null,null,null,null,null,null,null,null,null,null,null,null,null,null,0,0,0,0,"D",0,0,0,0,0,0,0,0,0]
["RNB","Indreguleringsspjæld",null,"IRIS-spjæld, Volumenstrømsregulator, Volustat","luftbegrænsende komponent der permanent begrænser et flow i en luftstrøm"," ","D",0,0,0,0,0,0,0,0,0,0,0,0,0,0,0,0,0,null,null,null,null,null,null,null,null,null,null,null,null,null,null,0,0,0,0,"D",0,0,0,0,0,0,0,0,0]
["RNC","Diffusor",null,"Indblæsningsarmatur (anemostat), Indblæsningsposer, Indblæsning, Indtag, Vægarmatur, Renrumsarmaturer, Udsugningsarmatur (armatur), Armatur), Afkast, Punktudsug, Punktsug, Fortrængningsarmaturer, Loftsarmatur synlig montage, Loftsarmaturer","luftbegrænsende komponent der omsætter trykenergi i en gas- eller luftstrøm til bevægelsesenergi"," ","D",0,0,0,0,0,0,0,0,0,0,0,0,0,0,0,0,0,null,null,null,null,null,null,null,null,null,null,null,null,null,null,0,0,0,0,"D",0,0,0,0,0,0,0,0,0]
["QNB","Reguleringsspjæld",null,"Vav-spjæld (vav terminal), Motorspjæld","mekanisk varierende komponent for regulering af flow i en luftsrøm","Og CAV spjæld","D",0,0,0,0,0,0,0,0,0,0,0,0,0,0,0,0,0,null,null,null,null,null,null,null,null,null,null,null,null,null,null,0,0,0,0,"D",0,0,0,0,0,0,0,0,0]
["20/25","Brand, sikring og beskyttelse",null,null,null,null,{"$f":"COUNTA(G202:G216)","v":14}]
["LA","Gasalarmanlæg",null,"Aspirationsanlæg","overvågende teknisk system der alarmgiver ved tilstande af farlige gasser"," ","F",{"$f":"IF(OR($G202=\"F\",$G202=\"T\"),$G202,0)","v":"F"},"F","F","F","F",{"$f":"IF($G202=\"F\",$G202,0)","v":"F"},"F",{"$f":"IF(OR($G202=\"F\",$G202=\"T\"),$G202,0)","v":"F"},"F","F","F","F","F","F","F","F",{"$f":"IF($G202=\"F\",$G202,0)","v":"F"},null,null,null,null,null,null,null,null,null,null,null,null,null,null,{"$f":"IF(OR($G202=\"F\",$G202=\"T\"),$G202,0)","v":"F"},{"$f":"IF($G202=\"F\",$G202,0)","v":"F"},"F","F",{"$f":"$G202","v":"F"},{"$f":"IF(OR($G202=\"F\",$G202=\"T\"),$G202,0)","v":"F"},"F","F","F","F","F",{"$f":"IF(AND(LEN($A202)=2,OR($G202=\"F\",$G202=\"T\")),$G202,0)","v":"F"},"F","F"]
["LB","Brandalarmanlæg ",null,"ABA-anlæg","overvågende teknisk system der alarmgiver ved røg eller brand"," ","F","F","F","F","F","F","F","F","F","F","F","F","F","F","F","F","F","F",null,null,null,null,null,null,null,null,null,null,null,null,null,null,"F","F","F","F","F","F","F","F","F","F","F","F","F","F"]
["LD","Adgangskontrolanlæg",null,"ADK-anlæg, perimetersikring, automatisk dørkontrolanlæg, porttelefonanlæg,  kombinerede anlæg,","overvågende teknisk system der giver adgang for personer til et område eller en bygning"," ","F","F","F","F","F","F","F","F","F","F","F","F","F","F","F","F","F","F",null,null,null,null,null,null,null,null,null,null,null,null,null,null,"F","F","F","F","F","F","F","F","F","F","F","F","F","F"]
["LE","Alarmanlæg",null,"Overfaldsalarmanlæg, Indbrudsalarmanlæg, Tyverisikringsanlæg, AIA-anlæg, Perimetersikring","overvågende teknisk system der alarmgiver ved farlige eller uønskede tilstande"," ","F","F","F","F","F","F","F","F","F","F","F","F","F","F","F","F","F","F",null,null,null,null,null,null,null,null,null,null,null,null,null,null,"F","F","F","F","F","F","F","F","F","F","F","F","F","F"]
["LF","TV-overvågningsanlæg",null,"ITV-anlæg, TVO-anlæg, Perimetersikring, CCTV-anlæg","overvågende teknisk system til visuel fjernoverågning"," ","F","F","F","F","F","F","F","F","F","F","F","F","F","F","F","F","F","F",null,null,null,null,null,null,null,null,null,null,null,null,null,null,"F","F","F","F","F","F","F","F","F","F","F","F","F","F"]
["MA","Varslingsanlæganlæg",null," AVA-anlæg, Tonevarsling, Talevarsling, VAR-anlæg","informationspræsenterende teknisk system der frembringer fast lyd eller tale til varsling af farlige tilstande"," ","F","F","F","F","F","F","F","F","F","F","F","F","F","F","F","F","F","F",null,null,null,null,null,null,null,null,null,null,null,null,null,null,"F","F","F","F","F","F","F","F","F","F","F","F","F","F"]
["PA","Brandbeskyttelsesanlæg",null,"ABDL-anlæg, Detektoranlæg for personsikring, AGA-anlæg, Automatisk branddørslukning anlæg, Anlæg for brand- og røgspjæld","beskyttende teknisk system der beskytter brugsrum ved åbning/lukning af døre og vinduer ved melding om brand"," ","F","F","F","F","F","F","F","F","F","F","F","F","F","F","F","F","F","F",null,null,null,null,null,null,null,null,null,null,null,null,null,null,"F","F","F","F","F","F","F","F","F","F","F","F","F","F"]
["PB","Brandslukningsanlæg",null,"Sprinkleranlæg, Inertgasanlæg, Vandtågeanlæg, ARS-anlæg, Slukningsanlæg","beskyttende teknisk system der beskytter mod brand ved hjælp af slukning"," ","F","F","F","F","F","F","F","F","F","F","F","F","F","F","F","F","F","F",null,null,null,null,null,null,null,null,null,null,null,null,null,null,"F","F","F","F","F","F","F","F","F","F","F","F","F","F"]
["PC","Jordingsanlæg",null,"Halvledende gulv","beskyttende teknisk system der beskytter mod farlige elektriske strømme ved jording af elektriske systemer"," ","F","F","F","F","F","F","F","F","F","F","F","F","F","F","F","F","F","F",null,null,null,null,null,null,null,null,null,null,null,null,null,null,"F","F","F","F","F","F","F","F","F","F","F","F","F","F"]
["PD","Lynbeskyttelsesanlæg",null,"Lynanlæg","beskyttende teknisk system der beskytter mod elektriske lyn ved jording af elektriske systemer"," ","F","F","F","F","F","F","F","F","F","F","F","F","F","F","F","F","F","F",null,null,null,null,null,null,null,null,null,null,null,null,null,null,"F","F","F","F","F","F","F","F","F","F","F","F","F","F"]
["BQD","Røgdetektor",null,"Røgswitch","kvalitetsomformende komponent fra mængden af røg i en luftart til boolsk værdi"," ","D",0,0,0,0,0,0,0,0,0,0,0,0,0,0,0,0,0,null,null,null,null,null,null,null,null,null,null,null,null,null,null,0,0,0,0,"D",0,0,0,0,0,0,0,0,0]
["FAA","Lynafleder",null,"Transientbeskyttelse","overspændingskomponent der indfanger og afleder elektriske lyn"," ",null,0,0,0,0,0,0,0,0,0,0,0,0,0,0,0,0,0,null,null,null,null,null,null,null,null,null,null,null,null,null,null,0,0,0,0,0,0,0,0,0,0,0,0,0,0]
["FME","Brandjalousi",null,null,"brandsikringskomponent der aflukker fysisk rum og beskytter mod brandsmitte"," ","D",0,0,0,0,0,0,0,0,0,0,0,0,0,0,0,0,0,null,null,null,null,null,null,null,null,null,null,null,null,null,null,0,0,0,0,"D",0,0,0,0,0,0,0,0,0]
["FMG","Røglukning",null,"Brandlukning","brandsikringskomponent der lukker et hul og beskytter mod brandsmitte"," ","D",0,0,0,0,0,0,0,0,0,0,0,0,0,0,0,0,0,null,null,null,null,null,null,null,null,null,null,null,null,null,null,0,0,0,0,"D",0,0,0,0,0,0,0,0,0]
["UAD","Skab for slangevinder",null,"Brandpost, Brandskab, Brandslangevinde","lukket indkapslende komponent for rør og slanger"," ","F","F","F","F","F","F","F","F","F","F","F","F","F","F","F","F","F","F",null,null,null,null,null,null,null,null,null,null,null,null,null,null,"F","F","F","F","F","F","F","F","F","F","F",0,0,0]
["21/25","Behandling, filtering og udskilning",null,null,null,null,{"$f":"COUNTA(G218:G225)","v":8}]
["KC","Filteranlæg",null,"Manganopsamling","behandlende teknisk system for adskillelse af faste partikler fra væske eller luft i flow"," ","F",{"$f":"IF(OR($G218=\"F\",$G218=\"T\"),$G218,0)","v":"F"},"F","F","F","F",{"$f":"IF($G218=\"F\",$G218,0)","v":"F"},"F",{"$f":"IF(OR($G218=\"F\",$G218=\"T\"),$G218,0)","v":"F"},"F","F","F","F","F","F","F","F",{"$f":"IF($G218=\"F\",$G218,0)","v":"F"},null,null,"F",null,null,null,null,null,null,"F",null,null,null,null,{"$f":"IF(OR($G218=\"F\",$G218=\"T\"),$G218,0)","v":"F"},{"$f":"IF($G218=\"F\",$G218,0)","v":"F"},"F","F",{"$f":"$G218","v":"F"},{"$f":"IF(OR($G218=\"F\",$G218=\"T\"),$G218,0)","v":"F"},"F","F","F","F","F",{"$f":"IF(AND(LEN($A218)=2,OR($G218=\"F\",$G218=\"T\")),$G218,0)","v":"F"},"F","F"]
["KD","Udskilleranlæg",null,"Olieudskilleranlæg, fedtudskiller, benzindskiller, saltudskiller, gipsudskiller","behandlende teknisk system for adskillelse af to substanser"," ","F","F","F","F","F","F","F","F","F","F","F","F","F","F","F","F","F","F",null,null,"F",null,"F",null,null,null,null,null,null,null,null,null,"F","F","F","F","F","F","F","F","F","F","F","F","F","F"]
["KE","Vandbehandlingsanlæg",null,"Kemikalieanlæg, Syre-lud anlæg, omvendt osmose anlæg (ROW-anlæg), blødgøringsanlæg, afklaklingsanlæg, Water-For-Injection-anlæg, syreneutraliseringsanlæg, dialysevand","behandlende teknisk system for håndtering af kemikalier til væske"," ","F","F","F","F","F","F","F","F","F","F","F","F","F","F","F","F","F","F",null,null,"F",null,"F",null,null,null,null,null,null,null,null,null,"F","F","F","F","F","F","F","F","F","F","F","F","F","F"]
["KF","Pumpeanlæg",null,"Trykforøgeranlæg, Vandpumpeanlæg, Grundvandspumpeanlæg, Drænpumpeanlæg, Afløbspumpeanlæg, Pumpebrønd","behandlende teknisk system for generering af et flow i væske"," ","F","F","F","F","F","F","F","F","F","F","F","F","F","F","F","F","F","F",null,null,"F",null,null,null,null,null,"F",null,null,null,null,null,"F","F","F","F","F","F","F","F","F","F","F","F","F","F"]
["KG","Trykholde- og ekspansionsanlæg",null,null,"behandlende teknisk system for stabilisering af tryk og volumen i en væske eller i en luftstrøm","Er inkl. I andre systemer","D",0,0,0,0,0,0,0,0,0,0,0,0,0,0,0,0,0,null,null,null,null,null,null,null,null,null,null,null,null,null,null,0,0,0,0,"D",0,0,0,0,0,0,0,0,0]
["HNA","Seperator",null,"Olieudskiller, Vandudskiller, Udskiller, Slamfang, Fedtudskiller, Beninudskiller, Benzin udskiller","tyngdekraftseparerende komponent til sammensatte substanser i flow"," ","D",0,0,0,0,0,0,0,0,0,0,0,0,0,0,0,0,0,null,null,null,null,null,null,null,null,null,null,null,null,null,null,0,0,0,0,"D",0,0,0,0,0,0,0,0,0]
["HNB","Sætningstank",null,"Udskiller","tyngdekraftseparerende komponent til stillestående sammensatte substanser"," ","D",0,0,0,0,0,0,0,0,0,0,0,0,0,0,0,0,0,null,null,null,null,null,null,null,null,null,null,null,null,null,null,0,0,0,0,"D",0,0,0,0,0,0,0,0,0]
["HQA","Filter",null,"Neutralisator, Kulfilter, Vandrensningsfilter, Drænfilter, Planfilter, Posefilter, Snavssamler, Sandfilter, Syreneutralisator, Fedtfilter, Elektrofilter","filtrerende komponent der fjerner uønskede substanser eller partikler fra luft eller væske"," ","D",0,0,0,0,0,0,0,0,0,0,0,0,0,0,0,0,0,null,null,null,null,null,null,null,null,null,null,null,null,null,null,0,0,0,0,"D",0,0,0,0,0,0,0,0,0]
["22/25","Lagring",null,null,null,null,{"$f":"COUNTA(G227:G233)","v":5}]
["QB","Gas- og luftart lageranlæg",null,"Gaslager, Gastankanlæg, Flaskeanlæg","lagrende teknisk system for gas og luftarter"," ","F",{"$f":"IF(OR($G227=\"F\",$G227=\"T\"),$G227,0)","v":"F"},"F","F","F","F",{"$f":"IF($G227=\"F\",$G227,0)","v":"F"},"F",{"$f":"IF(OR($G227=\"F\",$G227=\"T\"),$G227,0)","v":"F"},"F","F","F","F","F","F","F","F",{"$f":"IF($G227=\"F\",$G227,0)","v":"F"},null,null,null,null,"F",null,null,null,null,null,null,null,null,null,{"$f":"IF(OR($G227=\"F\",$G227=\"T\"),$G227,0)","v":"F"},{"$f":"IF($G227=\"F\",$G227,0)","v":"F"},"F","F",{"$f":"$G227","v":"F"},{"$f":"IF(OR($G227=\"F\",$G227=\"T\"),$G227,0)","v":"F"},"F","F","F","F","F",{"$f":"IF(AND(LEN($A227)=2,OR($G227=\"F\",$G227=\"T\")),$G227,0)","v":"F"},"F","F"]
["QC","Væskelageranlæg",null,"Olietankanlæg, Opsamlingsanlæg, Kemikalietankanlæg, Tankanlæg, Vandtankanlæg, Bufferanlæg","lagrende teknisk system for væsker"," ","F","F","F","F","F","F","F","F","F","F","F","F","F","F","F","F","F","F",null,null,null,null,"F",null,null,null,null,null,null,null,null,null,"F","F","F","F","F","F","F","F","F","F","F","F","F","F"]
["CMA","Beholder",null,"Olietank, Kryobeholder, Tørklosetter, Tank, Tørkloset, Tønde, Væskeakkumulator, Vandtank, Gastank, Gasbeholder, Dampakkumulator, Dampbeholder, Forrådsbeholdere, Ekspansionsbeholder","lukket stationær komponent til gas, væsker og masser"," ","F","F","F","F","F","F","F","F","F","F","F","F","F","F","F","F","F","F",null,null,null,null,"T",null,null,null,null,null,null,null,null,null,"F","F","F","F","F","F","F","F","F","F","F",0,0,0]
["EMB","Kedel",null,null,"forbrændingskomponent der opvarmer vand til videre afgivelse af varme eller damp"," ",null,0,0,0,0,0,0,0,0,0,0,0,0,0,0,0,0,0,null,null,null,null,null,null,null,null,null,null,null,null,null,null,0,0,0,0,0,0,0,0,0,0,0,0,0,0]
["CNA","Container",null,"Affaldscontainer","flytbar stoflagrende komponent til materialer"," ",null,0,0,0,0,0,0,0,0,0,0,0,0,0,0,0,0,0,null,null,null,null,null,null,null,null,null,null,null,null,null,null,0,0,0,0,0,0,0,0,0,0,0,0,0,0]
["CNB","Gasflaske",null,"Flaske","flytbar stoflagrende komponent til gas"," ","D",0,0,0,0,0,0,0,0,0,0,0,0,0,0,0,0,0,null,null,null,null,null,null,null,null,null,null,null,null,null,null,0,0,0,0,"D",0,0,0,0,0,0,0,0,0]
["CPC","Dampbeholder",null,"Damplager, Damptank","termisk energilagrende komponent til damp"," ","F","F","F","F","F","F","F","F","F","F","F","F","F","F","F","F","F","F",null,null,null,null,"F",null,null,null,null,null,null,null,null,null,"F","F","F","F","F","F","F","F","F","F","F",0,0,0]
["23/25","IT-infrastruktur",null,null,null,null,{"$f":"COUNTA(G235:G251)","v":17}]
["HJ","Signalforsyninganlæg",null,"ISDN, Nødkaldeanlæg, Telefonanlæg, TV-signal, Teleslyngeanlæg, Datanetværk, Radioanlæg, Monopolskillepunkt, MPLS, ADSL, Personsøgeanlæg, Bookingsystem","forsynende teknisk system for signaler"," ","F",{"$f":"IF(OR($G235=\"F\",$G235=\"T\"),$G235,0)","v":"F"},"F","F","F","F",{"$f":"IF($G235=\"F\",$G235,0)","v":"F"},"F",{"$f":"IF(OR($G235=\"F\",$G235=\"T\"),$G235,0)","v":"F"},"F","F","F","F","F","F","F","F",{"$f":"IF($G235=\"F\",$G235,0)","v":"F"},null,null,null,null,null,null,null,null,null,null,null,null,null,null,{"$f":"IF(OR($G235=\"F\",$G235=\"T\"),$G235,0)","v":"F"},{"$f":"IF($G235=\"F\",$G235,0)","v":"F"},"F","F",{"$f":"$G235","v":"F"},{"$f":"IF(OR($G235=\"F\",$G235=\"T\"),$G235,0)","v":"F"},"F","F","F","F","F",{"$f":"IF(AND(LEN($A235)=2,OR($G235=\"F\",$G235=\"T\")),$G235,0)","v":"F"},"F","F"]
["JL","Signalfordelingsanlæg",null,"It-anlæg (building distributor (bd ux)), It-anlæg (campus distributor (cd hx)), It-anlæg (floor distributor (fd ux)), Telefoni-anlæg, TV-anlæg, Datadistributionsanlæg, AV-anlæg, Sikringsanlæg","transporterende teknisk system for signaler"," ","D",0,0,0,0,0,0,0,0,0,0,0,0,0,0,0,0,0,null,null,null,null,null,null,null,null,null,null,null,null,null,null,0,0,0,0,"D",0,0,0,0,0,0,0,0,0]
["KJ","Antenneanlæg",null,"DAS","behandlende teknisk system for omformning af radiobølger til elektriske signaler"," ","F","F","F","F","F","F","F","F","F","F","F","F","F","F","F","F","F","F",null,null,null,null,null,null,null,null,null,null,null,null,null,null,"F","F","F","F","F","F","F","F","F","F","F","F","F","F"]
["KFE","IT-switch",null,"Hub, Router, Switch","elektrisk signalinformation komponent der aktivt eller passivt forbinder to datanetværk uden omformning af signal"," ","D",0,0,0,0,0,0,0,0,0,0,0,0,0,0,0,0,0,null,null,null,null,null,null,null,null,null,null,null,null,null,null,0,0,0,0,"D",0,0,0,0,0,0,0,0,0]
["KFF","Input/output modul",null,"Decentralt i/o modul, Undercentral, Busmodul","elektrisk signalinformation komponent der aktivt løser opgaver eller kommunikerer decentralt på et datanetværk"," ","D",0,0,0,0,0,0,0,0,0,0,0,0,0,0,0,0,0,null,null,null,null,null,null,null,null,null,null,null,null,null,null,0,0,0,0,"D",0,0,0,0,0,0,0,0,0]
["KGA","Optisk switch",null,null,"optisk signalinformation komponent der aktivt eller passivt forbinder to lyssignaler uden omformning af signal"," ","D",0,0,0,0,0,0,0,0,0,0,0,0,0,0,0,0,0,null,null,null,null,null,null,null,null,null,null,null,null,null,null,0,0,0,0,"D",0,0,0,0,0,0,0,0,0]
["KGB","Optisk router",null,"Gateway","optisk signalinformation komponent der fordeler information via lys"," ","D",0,0,0,0,0,0,0,0,0,0,0,0,0,0,0,0,0,null,null,null,null,null,null,null,null,null,null,null,null,null,null,0,0,0,0,"D",0,0,0,0,0,0,0,0,0]
["KGC","Optisk sender",null,null,"optisk signalinformation komponent der sender information via lys"," ","D",0,0,0,0,0,0,0,0,0,0,0,0,0,0,0,0,0,null,null,null,null,null,null,null,null,null,null,null,null,null,null,0,0,0,0,"D",0,0,0,0,0,0,0,0,0]
["KGD","Optisk modtager",null,"Optokobler","optisk signalinformation komponent der modtager information via lys"," ","D",0,0,0,0,0,0,0,0,0,0,0,0,0,0,0,0,0,null,null,null,null,null,null,null,null,null,null,null,null,null,null,0,0,0,0,"D",0,0,0,0,0,0,0,0,0]
["KGE","Optisk repeater",null,null,"optisk signalinformation komponent der forstærker et lysinformationssignal"," ","D",0,0,0,0,0,0,0,0,0,0,0,0,0,0,0,0,0,null,null,null,null,null,null,null,null,null,null,null,null,null,null,0,0,0,0,"D",0,0,0,0,0,0,0,0,0]
["UAB","Rack",null,"IT-rack, It-anlæg (campus distributor (cd ux), Kamerahus, Krydsfelt, Telepatchfelt, X-Felt, Multimedierack, Multimedieskab, Floor distributor (fd ux), Building distributor (bd ux)","delvis lukket indkapslende komponent for elektronisk udstyr","Bjarne!!!","D",0,0,0,0,0,0,0,0,0,0,0,0,0,0,0,0,0,null,null,null,null,null,null,null,null,null,null,null,null,null,null,0,0,0,0,"D",0,0,0,0,0,0,0,0,0]
["WHA","Fiberkabel",null,"Optisk kabel, Dropkabel, Fiber, Fiberkabel, Backbonekabel","optisk signaltransporterende komponent for signaler i form af lys mellem to punkter"," ","D",0,0,0,0,0,0,0,0,0,0,0,0,0,0,0,0,0,null,null,null,null,null,null,null,null,null,null,null,null,null,null,0,0,0,0,"D",0,0,0,0,0,0,0,0,0]
["WHB","Lysfiberkabel",null,"Optisk kabel, Fiberkabel, Lysfiber","optisk signaltransporterende komponent for transport af lys fra en lyskilde til et andet punkt"," ","D",0,0,0,0,0,0,0,0,0,0,0,0,0,0,0,0,0,null,null,null,null,null,null,null,null,null,null,null,null,null,null,0,0,0,0,"D",0,0,0,0,0,0,0,0,0]
["XGA","Signalstik",null,"Optisk stik, HDMI-stik, Telefonstik, VGA-stik, Drop, RJ45-stik, USB-stik, Mikrofonstik, Antennestik, PDS-stik, SVGA-stik, EDB-drop, EDB-stik","signalforbindende komponent der tilslutter en vilkårlig elektronisk enhed til en signalkilde"," ","D",0,0,0,0,0,0,0,0,0,0,0,0,0,0,0,0,0,null,null,null,null,null,null,null,null,null,null,null,null,null,null,0,0,0,0,"D",0,0,0,0,0,0,0,0,0]
["XGB","Signaldåse",null,"Keystone, Teminal outlet (to)","elektrisk signalforbindende komponent der indkapsler og muliggør forbindelse mellem flere ens elektroniske kredse"," ","D",0,0,0,0,0,0,0,0,0,0,0,0,0,0,0,0,0,null,null,null,null,null,null,null,null,null,null,null,null,null,null,0,0,0,0,"D",0,0,0,0,0,0,0,0,0]
["XGC","Patchpanel",null,"X-Felt","elektrisk signalforbindende komponent der fleksibelt forbinder flere datanetværk med hinanden"," ","D",0,0,0,0,0,0,0,0,0,0,0,0,0,0,0,0,0,null,null,null,null,null,null,null,null,null,null,null,null,null,null,0,0,0,0,"D",0,0,0,0,0,0,0,0,0]
["XGD","Signalfordeler",null,null,"elektrisk elektronisk signalforbindende komponent der kobler og fordeler signaler mellem flere tilsluttede enheder"," ","D",0,0,0,0,0,0,0,0,0,0,0,0,0,0,0,0,0,null,null,null,null,null,null,null,null,null,null,null,null,null,null,0,0,0,0,"D",0,0,0,0,0,0,0,0,0]
["24/25","Måling og transmitter",null,null,null,null,{"$f":"COUNTA(G253:G278)","v":26}]
["QA","Måleranlæg",null,"Kemikaliemåleranlæg, Kølemåleranlæg, Vandmåleranlælg, Varmemåleranlæg, Varmtvandsmåleranlæg, Væskemåleranlæg, Gasmåleranlæg, Målearrangement, Måler, Målerarrangement, Smartgrid, El-måleranlæg","lagrende teknisk system for måletekniske forbrugsinformationer"," ","F",{"$f":"IF(OR($G253=\"F\",$G253=\"T\"),$G253,0)","v":"F"},"F","F","F","F",{"$f":"IF($G253=\"F\",$G253,0)","v":"F"},"F",{"$f":"IF(OR($G253=\"F\",$G253=\"T\"),$G253,0)","v":"F"},"F",{"$f":"IF(OR($G253=\"F\",$G253=\"T\"),$G253,0)","v":"F"},"F","F","F","F","F","F",{"$f":"IF($G253=\"F\",$G253,0)","v":"F"},null,null,null,null,null,null,null,"F",null,null,null,null,null,null,{"$f":"IF(OR($G253=\"F\",$G253=\"T\"),$G253,0)","v":"F"},{"$f":"IF($G253=\"F\",$G253,0)","v":"F"},"F","F",{"$f":"$G253","v":"F"},{"$f":"IF(OR($G253=\"F\",$G253=\"T\"),$G253,0)","v":"F"},"F","F","F","F","F",{"$f":"IF(AND(LEN($A253)=2,OR($G253=\"F\",$G253=\"T\")),$G253,0)","v":"F"},"F","F"]
["BDA","Densitetstransmitter",null,"Densitetsmåler, Densitetssensor, Massefyldemåler, Massefyldetransmitter","densitetomformende komponet til diskret variabel"," ","D",0,0,0,0,0,0,0,0,0,0,0,0,0,0,0,0,0,null,null,null,null,null,null,null,null,null,null,null,null,null,null,0,0,0,0,"D",0,0,0,0,0,0,0,0,0]
["BDB","Densitet switch",null,"Massefyldeswitch","densitetomformende komponet til boolsk værdi"," ","D",0,0,0,0,0,0,0,0,0,0,0,0,0,0,0,0,0,null,null,null,null,null,null,null,null,null,null,null,null,null,null,0,0,0,0,"D",0,0,0,0,0,0,0,0,0]
["BFA","Væskeflowmåler",null,"Væskemåler, Vandmåler, Spritmåler","flowomformende komponent til væskegennemstrømning"," ","D",0,0,0,0,0,0,0,0,0,0,0,0,0,0,0,0,0,null,null,null,null,null,null,null,null,null,null,null,null,null,null,0,0,0,0,"D",0,0,0,0,0,0,0,0,0]
["BFB","Gasflowmåler",null,"Iltmåler, Gasmåler","flowomformende komponent til gasgennemstrømning"," ","D",0,0,0,0,0,0,0,0,0,0,0,0,0,0,0,0,0,null,null,null,null,null,null,null,null,null,null,null,null,null,null,0,0,0,0,"D",0,0,0,0,0,0,0,0,0]
["BFC","Lufttransmitter",null,"Luftmåler","flowomformende komponent fra luftmængde til diskret variabel"," ","D",0,0,0,0,0,0,0,0,0,0,0,0,0,0,0,0,0,null,null,null,null,null,null,null,null,null,null,null,null,null,null,0,0,0,0,"D",0,0,0,0,0,0,0,0,0]
["BFD","Luftswitch",null,"Flowswitche, Flowvagt","flowomformende komponent fra luftmængde til boolsk værdi"," ","D",0,0,0,0,0,0,0,0,0,0,0,0,0,0,0,0,0,null,null,null,null,null,null,null,null,null,null,null,null,null,null,0,0,0,0,"D",0,0,0,0,0,0,0,0,0]
["BGC","Bevægelsesdetektor",null," Bevægelsessensor (pir), Induktiv aftaster (radar), Nærhedsføler, Grovmasket detektering (bevægelsesdetektor), Radar, Ultralydstektor, Finmasket detektering (tilstedeværelsesdetektor), Bevægelsesføler","positionsomformende komponent fra nærhed af mennesker eller dyr til boolsk værdi"," ","D",0,0,0,0,0,0,0,0,0,0,0,0,0,0,0,0,0,null,null,null,null,null,null,null,null,null,null,null,null,null,null,0,0,0,0,"D",0,0,0,0,0,0,0,0,0]
["BJA","Gasmåler",null,"Energimåler, Effektmåler, Effekttransmitter","forbrugsomformende komponent til gas"," ","D",0,0,0,0,0,0,0,0,0,0,0,0,0,0,0,0,0,null,null,null,null,null,null,null,null,null,null,null,null,null,null,0,0,0,0,"D",0,0,0,0,0,0,0,0,0]
["BJB","Kølemåler",null,"Energimåler","forbrugsomformende komponent til køling"," ","D",0,0,0,0,0,0,0,0,0,0,0,0,0,0,0,0,0,null,null,null,null,null,null,null,null,null,null,null,null,null,null,0,0,0,0,"D",0,0,0,0,0,0,0,0,0]
["BJC","Varmemåler",null,"Kondensatmåler, Varmeenergimåler, Energimåler","forbrugsomformende komponent til varme"," ","D",0,0,0,0,0,0,0,0,0,0,0,0,0,0,0,0,0,null,null,null,null,null,null,null,null,null,null,null,null,null,null,0,0,0,0,"D",0,0,0,0,0,0,0,0,0]
["BJD","El-måler",null,"Kwh-Måler","forbrugsomformende komponent til elektricitet"," ","D",0,0,0,0,0,0,0,0,0,0,0,0,0,0,0,0,0,null,null,null,null,null,null,null,null,null,null,null,null,null,null,0,0,0,0,"D",0,0,0,0,0,0,0,0,0]
["BMA","Fugttransmitter",null,"Fugtmåler, Fugtsensor","fugtighedsomformende komponent til diskret variabel"," ","D",0,0,0,0,0,0,0,0,0,0,0,0,0,0,0,0,0,null,null,null,null,null,null,null,null,null,null,null,null,null,null,0,0,0,0,"D",0,0,0,0,0,0,0,0,0]
["BMB","Fugtswitch",null,"Fugtvagt","fugtighedsomformende komponent til boolsk værdi"," ","D",0,0,0,0,0,0,0,0,0,0,0,0,0,0,0,0,0,null,null,null,null,null,null,null,null,null,null,null,null,null,null,0,0,0,0,"D",0,0,0,0,0,0,0,0,0]
["BPA","Tryktransmitter",null,"Trykmåler, Tryksensor, Differenstrykmåler, Manometer","trykomformende komponent til diskret variabel"," ","D",0,0,0,0,0,0,0,0,0,0,0,0,0,0,0,0,0,null,null,null,null,null,null,null,null,null,null,null,null,null,null,0,0,0,0,"D",0,0,0,0,0,0,0,0,0]
["BPB","Trykswitch",null,"Trykvagt","trykomformende komponent til boolsk værdi"," ","D",0,0,0,0,0,0,0,0,0,0,0,0,0,0,0,0,0,null,null,null,null,null,null,null,null,null,null,null,null,null,null,0,0,0,0,"D",0,0,0,0,0,0,0,0,0]
["BQA","Luftkvalitettransmitter",null,"NH3-koncentration, Gasanalysator, Luftkvalitetssensor, CO-koncentration, CO2-koncentration, Benzinkoncentration","kvalitetsomformende komponent fra koncentrationer i luftarter til diskret variabel"," ","D",0,0,0,0,0,0,0,0,0,0,0,0,0,0,0,0,0,null,null,null,null,null,null,null,null,null,null,null,null,null,null,0,0,0,0,"D",0,0,0,0,0,0,0,0,0]
["BQB","Luftkvalitetsdetektor",null,"Luftswitch","kvalitetsomformende komponent fra koncentrationer i luftarter til boolsk værdi"," ","D",0,0,0,0,0,0,0,0,0,0,0,0,0,0,0,0,0,null,null,null,null,null,null,null,null,null,null,null,null,null,null,0,0,0,0,"D",0,0,0,0,0,0,0,0,0]
["BQC","Røgtransmitter",null,"Røgsensor","kvalitetsomformende komponent fra mængden af røg i en luftart til diskrete variabel"," ","D",0,0,0,0,0,0,0,0,0,0,0,0,0,0,0,0,0,null,null,null,null,null,null,null,null,null,null,null,null,null,null,0,0,0,0,"D",0,0,0,0,0,0,0,0,0]
["BRA","Lystransmitter",null,"Luxsensor, Lyssensor, Lystransmitter, Lysmåler","strålingsomformende komponent fra lysmængde til diskret variabel"," ","D",0,0,0,0,0,0,0,0,0,0,0,0,0,0,0,0,0,null,null,null,null,null,null,null,null,null,null,null,null,null,null,0,0,0,0,"D",0,0,0,0,0,0,0,0,0]
["BRB","Lysswitch",null,"Skumringsrelæ, Lysdetektor, Lysmåler","strålingsomformende komponent fra lysmængde til boolsk værdi"," ","D",0,0,0,0,0,0,0,0,0,0,0,0,0,0,0,0,0,null,null,null,null,null,null,null,null,null,null,null,null,null,null,0,0,0,0,"D",0,0,0,0,0,0,0,0,0]
["BRC","Flammedetektor",null,null,"strålingsomformende komponent fra tilstædeværelse af ild (flamme) til boolsk værdi"," ","D",0,0,0,0,0,0,0,{"$f":"IF(OR($G274=\"F\",$G274=\"T\"),$G274,0)","v":0},0,0,0,0,0,0,0,0,0,null,null,null,null,null,null,null,null,null,null,null,null,null,null,0,0,0,0,"D",0,0,0,0,0,0,0,0,0]
["BRD","Fotocelle",null,"IR-barriere, Linjedetektor, Lystæppe","strålingsomformende komponent fra optisk signal til et elektrisk signal"," ","D",0,0,0,0,0,0,0,0,0,0,0,0,0,0,0,0,0,null,null,null,null,null,null,null,null,null,null,null,null,null,null,0,0,0,0,"D",0,0,0,0,0,0,0,0,0]
["BSA","Frekvensmåler",null,"Akustisk glasbrudsdetektor, Frekvenstransmitter, Frekvens","hastighed/frekvensomformende komponent fra frekvens til diskret variabel"," ","D",0,0,0,0,0,0,0,0,0,0,0,0,0,0,0,0,0,null,null,null,null,null,null,null,null,null,null,null,null,null,null,0,0,0,0,"D",0,0,0,0,0,0,0,0,0]
["BTA","Temperaturtransmitter",null,"Temperaturmåler, Temperaturføler, Temperatursensor","temperaturomformende komponent til diskret variabel"," ","D",0,0,0,0,0,0,0,0,0,0,0,0,0,0,0,0,0,null,null,null,null,null,null,null,null,null,null,null,null,null,null,0,0,0,0,"D",0,0,0,0,0,0,0,0,0]
["BTB","Temperaturswitch",null,"Temperaturføler, Termodetektor, Termostat, Dugpunkttermostat, Frosttermostat, Brandtermostat","temperaturomformende komponent til boolsk værdi"," ","D",0,0,0,0,0,0,0,0,0,0,0,0,0,0,0,0,0,null,null,null,null,null,null,null,null,null,null,null,null,null,null,0,0,0,0,"D",0,0,0,0,0,0,0,0,0]
["25/25","Styring og automatik",null,null,null,null,{"$f":"COUNTA(G280:G281)","v":2}]
["KFD","Styre- og reguleringsenhed",null,"IA, IBI-controller, Nødspærringsbokse, Va| ars, Undercentral, AVS-anlæg, Abv| abdl, ADK, ASP, AVS, PLC, Styreboks, Centraludstyr, Controller, CTV, Brandalarmcentral","elektrisk signalinformation komponent der selvstændigt styrer et system lokalt uden menneskelig indgriben"," ","D",{"$f":"IF(OR($G280=\"F\",$G280=\"T\"),$G280,0)","v":0},0,0,0,0,{"$f":"IF($G280=\"F\",$G280,0)","v":0},0,{"$f":"IF(OR($G280=\"F\",$G280=\"T\"),$G280,0)","v":0},0,0,0,0,0,0,0,0,{"$f":"IF($G280=\"F\",$G280,0)","v":0},null,null,null,null,null,null,null,null,null,null,null,null,null,null,{"$f":"IF(OR($G280=\"F\",$G280=\"T\"),$G280,0)","v":0},{"$f":"IF($G280=\"F\",$G280,0)","v":0},0,0,{"$f":"$G280","v":"D"},{"$f":"IF(OR($G280=\"F\",$G280=\"T\"),$G280,0)","v":0},0,0,0,0,0,{"$f":"IF(AND(LEN($A280)=2,OR($G280=\"F\",$G280=\"T\")),$G280,0)","v":0},0,0]
["LC","Automationsanlæg",null,"IBI-anlæg, Klimastyring, Lysstyringsanlæg, Lysstyring, CTS-anlæg, BMS-anlæg","overvågende teknisk system der automatiserer processer i bygnings- og procestekniske anlæg i en central enhed","Overkomponent","F","F","F","F","F","F","F","F","F","F","F",null,null,null,null,null,null,null,null,null,null,null,null,null,null,null,null,null,null,null,null,null,null,null,null,null,null,null,null,null,null,null,"F","F","F","F"]
[null,null,null,null,null,null,null,null,null,null,null,null,null,null,null,null,null,null,null,null,null,null,null,0,null,null,null,null,null,null,null,null,null,null,null,null,null,null,null,0,0,0,null,null,null,null,null,null,null,null,{"$f":"IF(AND(LEN($A282)=2,OR($G282=\"F\",$G282=\"T\")),$G282,0)","v":0},{"$f":"IF(AND(LEN($A282)=2,OR($G282=\"F\",$G282=\"T\")),$G282,0)","v":0}]

{"sheet":"LookUpData","index":1,"n_rows":17,"n_cols":1,"rows_kept":17,"cut":false,"hidden":true,"merged":[]}
["Fagområde"]
["ADK"]
["Belysning"]
["Brand"]
["CTS/BMS"]
["EL"]
["Gas- if luftarter"]
["IT-kabling"]
["Kloak"]
["Køling"]
["Konstruktion"]
["Kunst"]
["Landmåling"]
["Landskab"]
["Sprinkling"]
["Ventilation"]
["VVS"]